Cogmind - Beta 16.1 @@@ ROGUE MODE // 2026.04.21 @ 14:22:59 Player: szymekc Result: Establishing 0b11! Performance ------------- Evolutions (9) 4500 Regions Visited (31) 6200 Robots Destroyed (414) 2070 Value Destroyed (29732) 29732 Prototype IDs (393) 7860 Alien Tech Used (7) 1400 Bonus (81986) 81986 TOTAL SCORE: 133748 Bonus ------- Triggered High Security 500 High Alert Combat Kills 18446 Follower Combat Kills 1630 Hunted by Unchained 1000 Delivered SUBCON Basin 2000 Registered with UFD 300 Met Optimus in HQ 500 Met Data Miner 300 Met Warlord at Base 500 MAIN.C Attacked Warlord 500 Warlord Defense Kills 596 Met Optimus at Protoforge 1000 Executed Drillbomb Mission 10000 Optimus Survived to 0b1 3000 Recovered Sigix Corpse 2000 Destroyed MAIN.C Guards 500 Met MAIN.C 5000 Destroyed MAIN.C Shell 5000 Destroyed MAIN.C 10000 Met Architect 300 Destroyed A8 300 Destroyed A6 400 Destroyed A5 500 Destroyed A4 700 Destroyed A3 800 Destroyed A2 1000 Destroyed Architect 15000 Win 3000 Friendly Fire -2786 Cogmind --------- Core Integrity 1343/1600 Matter 260/300 Energy 494/500 System Corruption 1% Temperature Cool (4) Movement Hovering (22) Location 0b11 Command Parts ------- > --- POWER (3) -------- Zero-point Reactor Zero-point Reactor Concept Zero-point Core > --- PROPULSION (8) --- Cooled Linear Gravjet Cooled Linear Gravjet Cooled Linear Gravjet Cooled Linear Gravjet Concept Gyrokinetic System Concept Gyrokinetic System Concept Gyrokinetic System Concept Gyrokinetic System > --- UTILITY (11) ----- Spectral Analyzer Concept Weapon Articulator Experimental Core Analyzer Experimental Armor Integrity Analyzer Femtoactuators Experimental Actuator Array Experimental Reaction Control System Advanced Phase Shifter Centrium Linked Plating Experimental Powered Armor Advanced Force Field > --- WEAPON (4) ------- Sigix Broadsword Experimental Jetlance Experimental Jetlance > --- INVENTORY (5) ---- Combat Linear Gravjet Advanced Remote Force Field Experimental Jetlance Sigix Corpse Peak State ------------ > --- POWER ------------ Light Quantum Reactor Zero-point Reactor Concept Zero-point Core > --- PROPULSION ------- Gyrokinetic Inverter Gravjet Array Concept Gyrokinetic System Concept Gyrokinetic System Concept Gyrokinetic System Concept Gyrokinetic System Concept Gyrokinetic System > --- UTILITY ---------- Concept Antigrav Storage Unit Spectral Analyzer Concept Weapon Articulator Experimental Core Analyzer Experimental Armor Integrity Analyzer Femtoactuators Concept Reaction Jets Concept Cloak Mesh Concept Cloak Mesh Concept RG22 Armor Experimental Force Field > --- WEAPON ----------- Null Cannon Sigix Broadsword Experimental Jetlance > --- INVENTORY -------- Hybrid Graviton Reactor Singularity Reactor Cooled Antigrav System Cooled Antigrav System Concept Chromion Battery Concept Chromion Battery Advanced Quantum Shading Machine Experimental Weapon Cycler Experimental Actuator Array Centrium Heavy Armor Plating AEGIS Remote Shield Concept Antimissile System Hacking Suite Transdimensional Reconstructor Transdimensional Reconstructor Subatomic Replicator Heavy Quantum Rifle Heavy Quantum Rifle Concept Plasma Driver Hypervelocity Railgun Experimental Jetlance [Rating: 322] Favorites ----------- Power Concept Zero-point Core Engine Subdweller Power Source Power Core Concept Zero-point Core Reactor Zero-point Reactor Propulsion Biomechanical Wings Treads Light Treads Wheel Subdweller Monowheel Hover Unit Concept Gyrokinetic System Flight Unit Biomechanical Wings Utility Experimental Signal Interpreter Device Deep Structural Scanner Storage Medium Storage Unit Processor Experimental Signal Interpreter Hackware System Mapper Protection Concept RG22 Armor Weapon Subdweller Beam Cannon Energy Gun Subdweller Laser Energy Cannon Subdweller Beam Cannon Ballistic Gun Hypervelocity Gauss Rifle Launcher Subdweller Shrapnel Launcher Special Weapon Mining Laser Impact Weapon Impact Mace Slashing Weapon Sigix Broadsword Piercing Weapon Experimental Jetlance Special Melee Weapon Advanced Datajack Build | -11 -10 -10 -8 -8 -6 -6 -6 -6 -6 -6 -5 -5 -5 -5 -5 -5 -5 -4 -4 -4 -4 -4 -3 -3 -3 -2 -2 -2 -1 -1 -1 ------- Run | Yrd Mat Sub Rec Scr Fac Was Fac Low Low Dat Pro Fac Was Fac Upp Upp War Pro Fac Upp Upp Zhi Pro Res Qua Res Tes Frg Acc Com Ac0 Slots Evolved 18 | . . . . . 8 . . . . . . 2 . . . . . . 2 . . . . 2 . 2 . . 2 . . Power 2 | . . . . . . . . . . . . . . . . . . . 1 . . . . . . . . . 1 . . Propulsion 5 | . . . . . 3 . . . . . . . . . . . . . 1 . . . . 1 . . . . . . . Utility 9 | . . . . . 5 . . . . . . 2 . . . . . . . . . . . 1 . 1 . . . . . Weapon 2 | . . . . . . . . . . . . . . . . . . . . . . . . . . 1 . . 1 . . Parts Attached 248 | 7 6 11 1 8 25 . 7 2 2 . . 10 . 5 . 1 5 . 8 1 . 3 2 11 5 2 14 74 2 20 16 Power 30 | 1 . 1 . 2 1 . . 1 . . . . . . . . . . 1 1 . . . 4 2 . 3 6 1 5 1 Engine 3 | 1 . 1 . 1 . . . . . . . . . . . . . . . . . . . . . . . . . . . Core 6 | . . . . 1 1 . . 1 . . . . . . . . . . 1 . . . . . . . . 2 . . . Reactor 21 | . . . . . . . . . . . . . . . . . . . . 1 . . . 4 2 . 3 4 1 5 1 Propulsion 59 | 2 . 4 1 3 8 . 1 . . . . 1 . . . . 1 . 3 . . . 1 2 . . 4 18 . 4 6 Treads 4 | 2 . 2 . . . . . . . . . . . . . . . . . . . . . . . . . . . . . Leg . | . . . . . . . . . . . . . . . . . . . . . . . . . . . . . . . . Wheel 4 | . . 2 1 1 . . . . . . . . . . . . . . . . . . . . . . . . . . . Hover 26 | . . . . . . . . . . . . . . . . . . . . . . . . 1 . . 1 14 . 4 6 Flight 25 | . . . . 2 8 . 1 . . . . 1 . . . . 1 . 3 . . . 1 1 . . 3 4 . . . Utility 113 | 2 1 3 . 1 13 . 4 . 1 . . 5 . 2 . 1 1 . 2 . . 3 1 4 2 2 4 42 1 10 8 Device 50 | 2 . 1 . . 3 . 2 . 1 . . 1 . 1 . 1 . . 2 . . 1 . 1 1 2 3 19 . 5 4 Storage 10 | . 1 1 . . 1 . . . . . . 1 . . . . . . . . . 1 . 1 . . . 3 . 1 . Processor 18 | . . . . 1 3 . . . . . . . . . . . . . . . . . . 2 1 . . 10 . 1 . Hackware 13 | . . . . . 4 . 1 . . . . 3 . 1 . . 1 . . . . . . . . . . 2 1 . . Protection 22 | . . 1 . . 2 . 1 . . . . . . . . . . . . . . 1 1 . . . 1 8 . 3 4 Artifact . | . . . . . . . . . . . . . . . . . . . . . . . . . . . . . . . . Weapon 46 | 2 5 3 . 2 3 . 2 1 1 . . 4 . 3 . . 3 . 2 . . . . 1 1 . 3 8 . 1 1 Energy Gun 2 | . . 1 . . . . . . . . . . . . . . 1 . . . . . . . . . . . . . . Energy Cannon 15 | . 2 1 . . 1 . 1 . . . . 2 . . . . 1 . 1 . . . . . . . 2 3 . 1 . Ballistic Gun 3 | 2 . . . . . . . . 1 . . . . . . . . . . . . . . . . . . . . . . Ballistic Cannon . | . . . . . . . . . . . . . . . . . . . . . . . . . . . . . . . . Launcher 5 | . 1 1 . . . . . . . . . . . 2 . . . . . . . . . . . . 1 . . . . Special Weapon 3 | . 1 . . . 1 . . . . . . 1 . . . . . . . . . . . . . . . . . . . Impact Weapon 1 | . . . . . . . 1 . . . . . . . . . . . . . . . . . . . . . . . . Slashing Weapon 7 | . . . . 1 1 . . 1 . . . 1 . . . . . . . . . . . . 1 . . 2 . . . Piercing Weapon 8 | . . . . 1 . . . . . . . . . . . . 1 . 1 . . . . 1 . . . 3 . . 1 Special Melee Weapon 2 | . 1 . . . . . . . . . . . . 1 . . . . . . . . . . . . . . . . . Unidentified Prototypes 72 | . . 1 . . 4 . 3 . 1 . . 5 . 3 . . 5 . . . 1 3 . 1 2 1 9 30 . 1 2 Parts Lost 16 | . . . . . 3 . . . . . . . . 2 . . . . 1 . . . . 1 . . . 5 . 2 2 Power 1 | . . . . . 1 . . . . . . . . . . . . . . . . . . . . . . . . . . Propulsion 3 | . . . . . . . . . . . . . . 1 . . . . . . . . . 1 . . . . . 1 . Utility 8 | . . . . . 1 . . . . . . . . 1 . . . . . . . . . . . . . 3 . 1 2 Weapon 4 | . . . . . 1 . . . . . . . . . . . . . 1 . . . . . . . . 2 . . . Highest Loss Streak 2 | . . . . . 1 . . . . . . . . 1 . . . . 1 . . . . 1 . . . 2 . 2 1 To Critical Strikes . | . . . . . . . . . . . . . . . . . . . . . . . . . . . . . . . . Average Backups 13 | . 7 14 18 15 9 7 6 7 6 7 7 6 10 8 8 9 8 9 9 10 10 10 10 9 10 10 9 19 13 13 4 Power . | . . . . . . . . . . . . . 1 . . . . . . . . . . . . . . . . . . Propulsion 2 | . 1 5 4 2 1 1 1 1 1 1 1 1 1 1 1 1 1 1 . . . . . . . . . 1 . . . Utility 5 | . 1 2 4 7 4 3 2 2 4 5 5 3 5 4 4 5 4 3 3 4 5 4 4 3 3 3 4 10 7 6 2 Weapon 4 | . 4 6 7 4 2 3 3 3 1 1 1 1 2 2 2 3 3 5 4 5 5 5 5 5 4 4 3 4 2 2 1 Tool/Special . | . . . . . . . . . . . . . . . . . . . . . . . . . . . . . . . . Unused Backups 51 | . . 8 . 14 4 . . . 3 . . 1 . 1 . . . . 2 1 . . . . . . 2 6 . 8 1 Power 3 | . . 1 . . . . . . . . . . . 1 . . . . 1 . . . . . . . . . . . . Propulsion 8 | . . 2 . . 1 . . . . . . . . . . . . . . 1 . . . . . . . 3 . 1 . Utility 18 | . . 2 . 3 3 . . . 2 . . . . . . . . . 1 . . . . . . . 1 1 . 4 1 Weapon 21 | . . 3 . 10 . . . . 1 . . 1 . . . . . . . . . . . . . . 1 2 . 3 . Tool/Special 1 | . . . . 1 . . . . . . . . . . . . . . . . . . . . . . . . . . . Average Slot Usage (%) 92 | . 100 98 85 91 95 93 92 93 97 100 98 99 100 100 94 94 94 94 88 89 86 85 86 86 93 83 86 89 91 92 95 Engine 5 | . 14 14 14 10 . . . . . . . . . . . . . . . . . . . . . . . . . . . Core 3 | . . . . 3 6 6 6 6 6 6 6 5 5 5 5 5 5 5 9 9 5 5 5 4 1 . . 6 7 3 3 Reactor 1 | . . . . . . . . . . . . . . . . . . . . . 5 5 5 4 7 8 8 1 3 6 7 Treads 7 | . 28 26 1 19 . . . . . . . . . . . . . . . . . . . . . . . . . . . Wheel 3 | . . 1 26 3 . . . . . . . . . . . . . . . . . . . . . . . . . . . Hover 6 | . . . . . . . . . . . . . . . . . . . . . . . . 1 4 4 1 23 26 27 30 Flight 10 | . . . . 4 32 33 33 33 33 33 33 29 29 29 29 29 29 29 25 26 25 25 26 26 27 25 25 4 . . . Device 12 | . 15 12 . . 5 6 10 13 18 20 20 17 17 11 5 5 7 11 11 15 15 17 19 14 20 20 23 18 22 22 23 Storage 8 | . 12 14 14 13 5 6 6 6 6 6 6 5 5 5 5 5 5 5 5 5 5 5 5 4 4 4 4 5 3 2 . Processor 9 | . . . . 5 22 20 20 20 20 20 20 17 17 17 17 17 17 17 15 15 15 12 10 12 13 12 8 12 11 11 11 Hackware 2 | . . . . . 8 6 1 . . . . 10 11 16 17 17 14 11 10 10 10 10 10 9 6 4 4 1 2 . . Protection 1 | . . . . . 1 6 6 6 1 . . . . . 4 4 5 5 3 . . . . 3 . . 3 5 . 2 6 Energy Gun 4 | . . 6 14 11 . . . . . . . . . . . . . . . . . . . . . . . . . . . Energy Cannon 5 | . 13 15 14 8 . . . . . . . . . . . . . . . . . . . . . . 2 3 . . . Slashing Weapon 2 | . . . . 5 6 6 6 6 6 6 5 5 5 5 5 5 5 5 3 . . . . . 1 4 4 1 3 3 2 Piercing Weapon 1 | . . . . 2 2 . . . . . . . . . . . . . 1 5 5 5 5 4 3 . . 2 6 6 7 Peak Build Rating 322 | 9 9 33 34 28 78 72 78 74 84 83 83 101 100 102 98 93 105 95 114 120 119 122 123 154 179 186 211 312 320 322 288 Average Rating 116 | 5 7 13 22 19 71 72 71 73 80 83 82 95 100 97 92 92 94 95 106 116 118 120 121 129 166 179 197 283 318 304 279 On Entrance 109 | . 9 8 33 15 28 72 72 73 74 83 83 83 100 100 95 92 92 95 95 110 119 119 121 118 154 179 179 211 299 318 284 Avg Prop Armor Cover (%) 2 | . . . 4 12 . . . . . . . . . . . . . . . . . . . 3 2 1 1 5 . . . Naked Turns . | . . . . . . . . . . . . . . . . . . . . . . . . . . . . . . . . Heaviest Build 217 | 11 32 217 217 217 36 28 31 29 31 29 29 33 30 30 29 29 35 31 37 37 37 38 44 49 53 53 78 121 113 123 113 Greatest Support 148 | 40 40 40 40 40 33 30 30 30 30 30 30 33 30 34 29 29 35 32 43 42 42 42 46 52 73 53 83 148 126 126 126 Greatest Overweight (x) 10 | . . 10 10 10 1 . 1 . 1 . . 1 . . . . . . . . . . . . . . . 1 . 1 . Average Overweight (x) . | . . . 8 2 . . . . . . . . . . . . . . . . . . . . . . . . . . . Largest Inventory Capacity 35 | 5 15 35 35 35 15 10 10 10 10 10 10 10 10 10 10 10 10 10 10 10 10 10 10 10 10 10 10 25 25 25 5 Average Capacity 17 | 5 14 16 35 20 13 10 10 10 10 10 10 10 10 10 10 10 10 10 10 10 10 10 10 10 10 10 10 22 25 19 5 Most Carried 34 | 1 15 30 34 24 15 10 10 10 10 10 10 10 10 10 10 10 10 10 10 10 10 10 10 10 10 10 10 25 14 25 5 Average Carried 14 | . 8 15 24 16 12 10 9 10 9 10 10 9 10 9 9 10 9 10 9 9 10 9 9 9 9 9 9 20 13 15 4 Final Capacity 35 | 5 15 35 35 15 10 10 10 10 10 10 10 10 10 10 10 10 10 10 10 10 10 10 10 10 10 10 10 25 25 5 5 Final Carried 30 | 1 15 30 20 15 10 10 10 10 10 10 10 10 10 9 10 10 10 10 10 10 10 10 9 10 10 10 10 14 14 5 4 Class Distribution -------------------- 26% | Mutant 16% | Scavenger-Sprinter 15% | Hauler-Mutant 9% | Hacker-Sprinter 9% | Hacker-Ninja 8% | Scout 8% | Hacker-Scout 3% | Scavenger-Gladiator Dominant Class ---------------- Mutant | -10/Materials Mutant | -10/Subcaves Hauler-Mutant | -8/Recycling Mutant | -8/Scraptown Scout | -6/Factory Scout | -6/Waste Scout | -6/Factory Scout | -6/Lower Caves Scout | -6/Lower Caves Scout | -6/Data Miner Scout | -5/Proximity Caves Hacker-Scout | -5/Factory Hacker-Scout | -5/Waste Hacker-Scout | -5/Factory Hacker-Sprinter | -5/Upper Caves Hacker-Sprinter | -5/Upper Caves Hacker-Sprinter | -5/Warlord Hacker-Sprinter | -4/Proximity Caves Hacker-Sprinter | -4/Factory Hacker-Scout | -4/Upper Caves Hacker-Scout | -4/Upper Caves Hacker-Ninja | -4/Zhirov Hacker-Ninja | -3/Proximity Caves Hacker-Ninja | -3/Research Hacker-Ninja | -3/Quarantine Hacker-Ninja | -2/Research Hacker-Ninja | -2/Testing Scavenger-Sprinter | -2/Protoforge Hacker-Sprinter | -1/Access Scavenger-Gladiator | -1/Command Scavenger-Sprinter | -1/Access_0 Resources | -11 -10 -10 -8 -8 -6 -6 -6 -6 -6 -6 -5 -5 -5 -5 -5 -5 -5 -4 -4 -4 -4 -4 -3 -3 -3 -2 -2 -2 -1 -1 -1 ----------- Run | Yrd Mat Sub Rec Scr Fac Was Fac Low Low Dat Pro Fac Was Fac Upp Upp War Pro Fac Upp Upp Zhi Pro Res Qua Res Tes Frg Acc Com Ac0 Matter Collected 6198 | 354 114 210 30 90 380 . 170 10 50 . 20 317 . 265 45 20 93 170 162 48 49 60 10 135 140 10 269 1872 60 588 457 Remotely 47 | . . . . . . . . . . . . . . . . . . . . . . . . . . . . 47 . . . Salvage Created 30291 | 177 369 286 86 224 892 . 631 . 28 . . 968 . 446 28 8 115 . 282 222 50 336 . 485 184 357 537 14956 943 3982 3699 Parts 1287 | 11 26 17 2 12 34 . 26 . . . . 34 . 15 1 . 4 . 17 6 4 5 . 10 4 12 25 622 41 122 237 Haulers Intercepted 22 | . 2 . . . 2 . 3 . . . . 6 . 2 . . . . . . . . . 3 1 2 . . 1 . . Recyclers Shooed 2 | . 1 . . . 1 . . . . . . . . . . . . . . . . . . . . . . . . . . Parts Field Recycled . | . . . . . . . . . . . . . . . . . . . . . . . . . . . . . . . . Retrieved Matter . | . . . . . . . . . . . . . . . . . . . . . . . . . . . . . . . . Parts Self-Destructed 40 | . . 18 . . . . . 4 3 . . . . . 1 . . . . 7 5 1 1 . . . . . . . . Prevented 17 | . . . . . . . . . 8 . . . . . . . . . . 4 3 . 2 . . . . . . . . Parts Restored 6 | . . . . . . . . . . . . . . . . . . . . . . . . . . . . 6 . . . Faulty 6 | . . . . . . . . . . . . . . . . . . . . . . . . . . . . 6 . . . Kills | -11 -10 -10 -8 -8 -6 -6 -6 -6 -6 -6 -5 -5 -5 -5 -5 -5 -5 -4 -4 -4 -4 -4 -3 -3 -3 -2 -2 -2 -1 -1 -1 ------- Run | Yrd Mat Sub Rec Scr Fac Was Fac Low Low Dat Pro Fac Was Fac Upp Upp War Pro Fac Upp Upp Zhi Pro Res Qua Res Tes Frg Acc Com Ac0 Combat Hostiles Destroyed 309 | . 8 2 . . 1 . . . . . . 2 . . 1 . 5 . 1 . . . . . . . 3 231 8 8 39 Melee 114 | . . . . . 1 . . . . . . . . . 1 . . . 1 . . . . . . . 3 53 8 8 39 Guns 2 | . . . . . . . . . . . . 2 . . . . . . . . . . . . . . . . . . . Cannons 104 | . 5 2 . . . . . . . . . . . . . . 1 . . . . . . . . . . 96 . . . AOE 68 | . 3 . . . . . . . . . . . . . . . 4 . . . . . . . . . . 61 . . . Classes Destroyed 33 | 3 3 3 1 . 3 . . . 1 . . 1 . . . . 3 . 2 1 1 . . . . . . 11 . . . Worker 9 | 2 1 . . . 2 . 1 . . . . 2 . . . . . . 1 . . . . . . . . . . . . Builder 4 | . . . 1 . 1 . . . . . . . . . . . . . . . . . . . . . . 1 1 . . Tunneler 4 | 3 . . . . . . 1 . . . . . . . . . . . . . . . . . . . . . . . . Hauler 22 | . 2 . . . 2 . 3 . . . . 6 . 2 . . . . . . . . . 3 1 2 . . 1 . . Recycler 16 | 1 1 . 1 . 4 . 2 . . . . . . 1 . . . . . . . . . 1 . 1 2 . 1 1 . Carrier 7 | . . . . . . . . . . . . . . . . . . . . . . . . . . . . 7 . . . Minesweeper 2 | . . . . . . . . . 1 . . . . . . 1 . . . . . . . . . . . . . . . Mechanic 4 | . . . . . . . . . . . . . . . . . . . 1 . . . . . . . . 2 . 1 . Operator 5 | . . . . . 2 . 1 . . . . 1 . . . . . . 1 . . . . . . . . . . . . Drone 4 | . . . . . . . . . . . . . . . . . . . . . . . . . . . . 4 . . . Watcher 19 | . . . . . 1 . 1 . . . . 3 . 3 . . . . 3 . . . . 2 2 1 . 1 1 1 . Swarmer 19 | . 3 . . . . . . . . . . . . . 1 . . . . . . . . . . . . 15 . . . Cutter 3 | . . . . . . . . . . . . . . . . . . . 1 . . . . . . . . . . 2 . Saboteur 2 | . . . . . . . . . . . . . . . . . . . . . . . . . . . . 2 . . . Grunt 44 | . 5 . . . . . . . . . . . . . . . 1 . . . . . . . . . . 33 5 . . Brawler 11 | . . . . . . . . . . . . . . . . . 2 . . . . . . . . . . 9 . . . Duelist 10 | . . . . . . . . . . . . . . . . . 1 . . . . . . . . . . 8 1 . . Protector 10 | . . . . . . . . . . . . . . . . . 1 . . . . . . . . . . 9 . . . Researcher 5 | . . . . . . . . . . . . . . . . . . . . . 1 . . . . . . 4 . . . Sentry 16 | . . 1 . . . . . . . . . 1 . . . . . . . . . . . . . . . 14 . . . Specialist 3 | . . . . . . . . . . . . . . . . . . . . . . . . . . . . 3 . . . Hunter 30 | . . . . . . . . . . . . 1 . . . . . . . . . . . . . . . 25 2 2 . Programmer 37 | . . . . . 1 . . . . . . . . . . . . . . . . . . . . . 3 33 . . . Behemoth 1 | . . . . . . . . . . . . . . . . . . . . . . . . . . . . 1 . . . Enhanced Grunt 24 | . . . . . . . . . . . . . . . . . . . . . . 1 . . . . . . . . 23 Enhanced Sentry 3 | . . . . . . . . . . . . . . . . . . . . . . . . . . . . . . . 3 Enhanced Hunter 6 | . . . . . . . . . . . . . . . . . . . . . . . . . . . . . . . 6 Hotshot 3 | . . . . . . . . . . . . . . . . . . . . . . . . . . . . 3 . . . Decapitator 10 | . . . . . . . . . . . . . . . . . . . . . . . . . . . . 10 . . . Immortal 2 | . . . . . . . . . . . . . . . . . . . . . . . . . . . . 2 . . . Striker 20 | . . . . . . . . . . . . . . . . . . . . . . . . . . . . 20 . . . Executioner 31 | . . . . . . . . . . . . . . . . . . . . . . . . . . . . 29 . 2 . Alpha 7 4 | . . . . . . . . . . . . . . . . . . . . . . . . . . . . 4 . . . V-Series 7 | . . . . . . . . . . . . . . . . . . . . . . . . . . . . 7 . . . Artisan 3 | . . 3 . . . . . . . . . . . . . . . . . . . . . . . . . . . . . Subdweller 7 | . . 1 . 6 . . . . . . . . . . . . . . . . . . . . . . . . . . . Scrapoid 2 | . . . . . . . . . . . . . . . . . . . . . . . . . . . . 2 . . . Samaritan 1 | . . . . . . . . . . . . . . . . . . . . 1 . . . . . . . . . . . Tinkerer 1 | . . . . . . . . . . . . . . . . . . . . . . . . . . . . 1 . . . Best Kill Streak 19 | 4 4 1 1 . 3 . 2 . 1 . . 4 . 2 1 1 5 . 2 . . . . 2 1 2 3 19 7 8 6 Combat Bots Only 19 | . 3 1 . . 1 . . . . . . 1 . . 1 . 5 . 1 . . . . . . . 3 19 6 4 6 Max Kills in Single Turn 5 | 1 3 1 1 1 1 . 1 . 1 . . 1 . 1 1 1 2 . 1 1 1 1 . 1 1 1 1 5 1 1 1 Gunslinging . | . . . . . . . . . . . . . . . . . . . . . . . . . . . . . . . . Exploded 5 | . 3 . . . . . . . . . . . . . . . 2 . . . . . . . . . . 5 . . . Melee 1 | . . . . . 1 . . . . . . . . . 1 . . . 1 . . . . . . . 1 1 1 1 1 Uniques/NPCs Destroyed 9 | . . . . . . . . . . . . . . . . . . . . . . . . . . . . . . 2 7 MAIN.C Shell (-1/Command) MAIN.C (-1/Command) A8 (-1/Access_0) A6 (-1/Access_0) A5 (-1/Access_0) A2 (-1/Access_0) A4 (-1/Access_0) Architect (-1/Access_0) A3 (-1/Access_0) Combat | -11 -10 -10 -8 -8 -6 -6 -6 -6 -6 -6 -5 -5 -5 -5 -5 -5 -5 -4 -4 -4 -4 -4 -3 -3 -3 -2 -2 -2 -1 -1 -1 -------- Run | Yrd Mat Sub Rec Scr Fac Was Fac Low Low Dat Pro Fac Was Fac Upp Upp War Pro Fac Upp Upp Zhi Pro Res Qua Res Tes Frg Acc Com Ac0 Hostile Shots Fired 1441 | . 7 18 4 . 67 . 32 . 6 . . 16 . 31 9 . . 14 51 . . . . 12 2 51 20 564 27 66 444 Missed 855 | . 3 3 . . 33 . 16 . 2 . . 10 . 15 7 . . 7 29 . . . . 8 1 37 14 299 13 26 332 Hits 586 | . 4 15 4 . 34 . 16 . 4 . . 6 . 16 2 . . 7 22 . . . . 4 1 14 6 265 14 40 112 Melee 21 | . . . . . . . . . . . . . . . . . . . . . . . . . . . . 7 1 4 9 Projectile 565 | . 4 15 4 . 34 . 16 . 4 . . 6 . 16 2 . . 7 22 . . . . 4 1 14 6 258 13 36 103 AOE 10 | . . 1 . . . . . . . . . . . . . . . . . . . . . . . . . 9 . . . Critical Strikes 44 | . . . . . . . . . . . . . . 1 . . . . 1 . . . . . . 1 2 17 . 5 17 Actively Blocked 27 | . . . . . . . . . . . . . . . . . . . . . . . . . . . 2 11 . 1 13 Part Disruptions 1 | . . . . . . . . . . . . . . . . . . . . . . . . . . . . . . . 1 Damage Taken 10798 | . 38 324 55 . 421 . 163 . 51 . . 127 . 265 33 . . 107 408 . . . . 66 16 342 135 5317 295 711 1924 Core 1125 | . . 122 . . 118 . 57 . 33 . . 73 . 89 . . . 9 118 . . . . . . 30 . 319 . 17 140 Absorbed by Shields 5320 | . . . . . . . . . . . . . . . . . . . . . . . . . . . . 2800 144 731 1645 Redirected to Shielding 792 | . . . . . . . . . . . . . . . . . . . . . . . . . . . . 349 . 100 343 Regen/Repaired (Parts) 3701 | . . . . 68 . . . . . . . . . . . . 30 . 59 . . . . . . 177 114 1935 202 344 772 Core Remaining (%) 81 | 100 . . . 51 . . . . . . 75 . . . . . . 82 . . . . 89 . 100 . . 75 . . 83 Volleys Fired 454 | 15 22 84 11 . 1 . 2 . 2 . . 26 . 20 1 . 11 . 2 . . . . . 3 1 3 230 . 20 . Largest 3 | 2 2 2 1 . 1 . 1 . 1 . . 1 . 1 1 . 1 . 1 . . . . . 1 1 1 3 . 1 . Hottest 410 | 40 100 120 80 . 90 . 90 . 35 . . 35 . 35 35 . 80 . 50 . . . . . 50 50 50 410 . 140 . Shots Fired 585 | 30 28 96 11 . 1 . 2 . 2 . . 26 . 20 1 . 11 . 2 . . . . . 3 1 3 328 . 20 . Gun 89 | 30 6 15 . . . . . . . . . 24 . 14 . . . . . . . . . . . . . . . . . Cannon 454 | . 18 53 11 . 1 . 2 . 2 . . 1 . 6 1 . 2 . 2 . . . . . 3 1 3 328 . 20 . Launcher 11 | . 1 1 . . . . . . . . . . . . . . 9 . . . . . . . . . . . . . . Special 31 | . 3 27 . . . . . . . . . 1 . . . . . . . . . . . . . . . . . . . Kinetic 75 | 30 6 1 . . . . . . . . . 24 . 14 . . . . . . . . . . . . . . . . . Thermal 488 | . 21 95 11 . 1 . 2 . 2 . . 1 . 6 1 . . . . . . . . . . . . 328 . 20 . Explosive 10 | . 1 . . . . . . . . . . . . . . . 9 . . . . . . . . . . . . . . Electromagnetic . | . . . . . . . . . . . . . . . . . . . . . . . . . . . . . . . . Entropic 11 | . . . . . . . . . . . . . . . . . 2 . 2 . . . . . 3 1 3 . . . . Robot Hit Streak 16 | 8 13 15 7 . . . . . . . . 3 . 4 . . 14 . . . . . . . . . . 16 . . . Robot Miss Streak 5 | 2 3 4 1 . . . . . . . . 2 . . . . . . . . . . . . . . . 5 . . . Penetration Max 1 | . . . . . . . . . . . . 1 . . . . . . . . . . . . . . . 1 . . . Secondary Targets . | . . . . . . . . . . . . . . . . . . . . . . . . . . . . . . . . Shots Hit Robots 1017 | 23 16 29 9 6 36 . 19 . 4 . . 35 . 14 1 1 10 . 17 7 1 9 . 11 8 9 13 341 26 115 257 Core Hits 591 | 6 13 12 2 6 13 . 7 . 1 . . 18 . 8 1 . 17 . 6 5 1 6 . 6 2 3 4 254 14 51 135 Critical Kills 26 | . . . . . . . . . . . . 2 . . . . . . . . . . . . . . . 24 . . . Critical Parts Destroyed 3 | . . . . . . . . . . . . 2 . 1 . . . . . . . . . . . . . . . . . Critical Strikes 277 | . . . . . 3 . 1 . . . . 12 . 2 . . 2 . . 2 . 3 . 3 1 . 1 66 13 47 121 Meltdown 24 | . . . . . . . . . . . . . . . . . . . . . . . . . . . . 24 . . . Destroy 7 | . . . . . . . . . . . . 5 . 2 . . . . . . . . . . . . . . . . . Sever 18 | . . . . . 3 . 1 . . . . 7 . . . . . . . . . . . . . . 1 3 1 . 2 Impale 218 | . . . . . . . . . . . . . . . . . . . . 2 . 3 . 3 1 . . 31 12 47 119 Sunder 10 | . . . . . . . . . . . . . . . . . 2 . . . . . . . . . . 8 . . . Melee Attacks 1163 | . . . . 6 65 . 38 5 16 . 2 48 . 48 9 3 1 2 43 10 6 10 1 27 31 27 31 263 37 142 292 Impact . | . . . . . . . . . . . . . . . . . . . . . . . . . . . . . . . . Slashing 507 | . . . . 6 62 . 38 5 16 . 2 48 . 48 9 3 1 2 38 . . . . . 6 27 31 84 7 28 46 Piercing 581 | . . . . . 3 . . . . . . . . . . . . . 5 10 6 10 1 27 25 . . 104 30 114 246 Entropic 75 | . . . . . . . . . . . . . . . . . . . . . . . . . . . . 75 . . . Sneak Attacks 88 | . . . . 6 9 . 7 . 1 . . 9 . 4 . 1 . . 7 1 1 2 . 4 1 4 2 21 4 2 2 Combat Hostiles 12 | . . . . . . . . . . . . . . . . . . . 1 . . . . . . 1 . 7 1 . 2 Follow-up Attacks 205 | . . . . . 1 . . . . . . . . . . . . . . . . . . . 2 . . 55 5 44 98 Damage Inflicted 101131 | 267 441 644 246 374 1859 . 1132 . 219 . . 1912 . 1026 40 126 1331 . 1202 611 92 767 . 971 618 1244 1483 58123 1668 10282 14453 Guns 598 | 267 25 209 . . . . . . . . . 70 . 27 . . . . . . . . . . . . . . . . . Cannons 26136 | . 263 370 246 . . . . . . . . . . . . . 139 . . . . . . . . . . 25118 . . . Explosions 20188 | . 143 65 . . . . . . . . . . . 17 . . 1192 . . . . . . . . . . 18771 . . . Melee 54199 | . . . . 374 1859 . 1132 . 219 . . 1842 . 982 40 126 . . 1202 611 92 767 . 971 618 1244 1483 14234 1668 10282 14453 Ramming 10 | . 10 . . . . . . . . . . . . . . . . . . . . . . . . . . . . . . Kinetic 454 | 267 25 65 . . . . . . . . . 70 . 27 . . . . . . . . . . . . . . . . . Thermal 44340 | . 263 579 246 . . . . . . . . . . . . . . . . . . . . . . . . 43252 . . . Explosive 1972 | . 143 . . . . . . . . . . . . . . . 1192 . . . . . . . . . . 637 . . . Electromagnetic 17 | . . . . . . . . . . . . . . 17 . . . . . . . . . . . . . . . . . Impact . | . . . . . . . . . . . . . . . . . . . . . . . . . . . . . . . . Slashing 20681 | . . . . 374 1828 . 1132 . 219 . . 1842 . 982 40 126 . . 1202 . . . . . 156 1244 1483 4137 258 2860 2798 Piercing 28275 | . . . . . 31 . . . . . . . . . . . . . . 611 92 767 . 971 462 . . 4854 1410 7422 11655 Entropic 5382 | . . . . . . . . . . . . . . . . . 139 . . . . . . . . . . 5243 . . . Highest Corruption 36 | . . . . . 2 2 2 . . . . . . . . . . . 3 3 3 3 3 . . 3 4 36 . 1 1 Average Corruption 13 | . . . . . 1 2 1 . . . . . . . . . . . 3 3 3 3 3 . . 1 3 26 . 1 1 Corruption Purged 3 | . . . . . . . 2 . . . . . . . . . . . . . . . . . . . . . . 1 . Corruption Blocked . | . . . . . . . . . . . . . . . . . . . . . . . . . . . . . . . . Effects 280 | . . . . . 5 1 2 . . . . . . . . . . . 5 6 5 3 2 . . . 7 231 . 9 4 Message Errors 64 | . . . . . 2 1 1 . . . . . . . . . . . 2 1 1 2 . . . . 1 49 . 2 2 Matter Fused 53 | . . . . . . . . . . . . . . . . . . . 1 1 1 . . . . . 1 45 . 2 2 Heat Flow Errors 29 | . . . . . . . . . . . . . . . . . . . 1 4 1 1 . . . . . 19 . 3 . Energy Discharges 17 | . . . . . 1 . . . . . . . . . . . . . . . . . 1 . . . 2 13 . . . Parts Rejected 4 | . . . . . . . . . . . . . . . . . . . . . . . . . . . . 4 . . . Parts Fused 5 | . . . . . . . . . . . . . . . . . . . . . . . . . . . 1 4 . . . Data Loss (minor) 26 | . . . . . 2 . 1 . . . . . . . . . . . . . 2 . 1 . . . 2 17 . 1 . Data Loss (major) 11 | . . . . . . . . . . . . . . . . . . . . . . . . . . . . 10 . 1 . Misfires 1 | . . . . . . . . . . . . . . . . . . . . . . . . . . . . 1 . . . Alerts 8 | . . . . . . . . . . . . . . . . . . . 1 . . . . . . . . 7 . . . Misdirections 32 | . . . . . . . . . . . . . . . . . . . . . . . . . . . . 32 . . . Weapon Failures 30 | . . . . . . . . . . . . . . . . . . . . . . . . . . . . 30 . . . Overload Shots . | . . . . . . . . . . . . . . . . . . . . . . . . . . . . . . . . Overflow Damage 11355 | . . . . . 239 . 76 . 91 . . 265 . 148 . 116 19 . 242 222 . 243 . 104 147 254 511 5810 338 1380 1150 Projectiles 1902 | . . . . . . . . . . . . . . . . . . . . . . . . . . . . 1902 . . . Explosions 2216 | . . . . . . . . . . . . . . . . . 19 . . . . . . . . . . 2197 . . . Melee 7237 | . . . . . 239 . 76 . 91 . . 265 . 148 . 116 . . 242 222 . 243 . 104 147 254 511 1711 338 1380 1150 Knockbacks 1 | . 1 . . . . . . . . . . . . . . . . . . . . . . . . . . . . . . Impact 1 | . 1 . . . . . . . . . . . . . . . . . . . . . . . . . . . . . . Kinetic . | . . . . . . . . . . . . . . . . . . . . . . . . . . . . . . . . Secondary . | . . . . . . . . . . . . . . . . . . . . . . . . . . . . . . . . Self-Inflicted Damage 94 | . . . . . . . . . . . . . . . . . . . . . . . . . . . . 94 . . . Shots 1 | . . . . . . . . . . . . . . . . . . . . . . . . . . . . 1 . . . Rammed . | . . . . . . . . . . . . . . . . . . . . . . . . . . . . . . . . Targets Rammed 1 | . 1 . . . . . . . . . . . . . . . . . . . . . . . . . . . . . . Kicked . | . . . . . . . . . . . . . . . . . . . . . . . . . . . . . . . . Crushed 1 | . 1 . . . . . . . . . . . . . . . . . . . . . . . . . . . . . . Highest Temperature 320 | . 80 24 90 . 30 . 72 . . . . . . . . . 155 . 189 208 233 117 . . . . . 320 . 235 . Average Temperature 84 | . 24 16 28 . 15 . 41 . . . . . . . . . 75 . 60 88 118 65 . . . . . 102 . 91 . Received Heat Transfer 730 | . 9 57 18 . 30 . 26 . . . . 18 . 9 . . . . 48 . . . . 12 9 54 . 369 12 12 47 Thermoelectric Energy+ 4215 | . . . . . . . . . . . . . . . . . . . . . . . . . . . . 4215 . . . Siege Activations . | . . . . . . . . . . . . . . . . . . . . . . . . . . . . . . . . Martial Activations . | . . . . . . . . . . . . . . . . . . . . . . . . . . . . . . . . Shielding Activations . | . . . . . . . . . . . . . . . . . . . . . . . . . . . . . . . . Robots Disrupted . | . . . . . . . . . . . . . . . . . . . . . . . . . . . . . . . . Combat Hostiles . | . . . . . . . . . . . . . . . . . . . . . . . . . . . . . . . . Robots Corrupted . | . . . . . . . . . . . . . . . . . . . . . . . . . . . . . . . . Combat Hostiles . | . . . . . . . . . . . . . . . . . . . . . . . . . . . . . . . . Parts Fried . | . . . . . . . . . . . . . . . . . . . . . . . . . . . . . . . . Impact Corruptions . | . . . . . . . . . . . . . . . . . . . . . . . . . . . . . . . . Robots Melted 24 | . . . . . . . . . . . . . . . . . . . . . . . . . . . . 24 . . . Combat Hostiles 21 | . . . . . . . . . . . . . . . . . . . . . . . . . . . . 21 . . . Parts Melted 46 | . . . . . . . . . . . . . . . . . . . . . . . . . . . . 46 . . . Heat Transferred 24572 | . 555 916 333 . . . . . . . . . . . . . . . . . . . . . . . . 22768 . . . Parts Sabotaged . | . . . . . . . . . . . . . . . . . . . . . . . . . . . . . . . . Parts Stolen . | . . . . . . . . . . . . . . . . . . . . . . . . . . . . . . . . Parts Stripped . | . . . . . . . . . . . . . . . . . . . . . . . . . . . . . . . . Power Chain Reactions 1 | . . . . . . . . . . . . . . . . . . . 1 . . . . . . . . . . . . Alert | -11 -10 -10 -8 -8 -6 -6 -6 -6 -6 -6 -5 -5 -5 -5 -5 -5 -5 -4 -4 -4 -4 -4 -3 -3 -3 -2 -2 -2 -1 -1 -1 ------- Run | Yrd Mat Sub Rec Scr Fac Was Fac Low Low Dat Pro Fac Was Fac Upp Upp War Pro Fac Upp Upp Zhi Pro Res Qua Res Tes Frg Acc Com Ac0 Maximum Alert Level 5 | . . . . . . . . . . . . 4 1 1 . . . . . . . . . . . . 1 5 5 5 . Low Security (%) 54 | 100 100 . 100 . 100 100 100 . . . . . . 46 . . . . 100 . . . . 100 100 100 86 6 . . . Level 1 4 | . . . . . . . . . . . . 7 100 53 . . . . . . . . . . . . 13 3 . . . Level 2 2 | . . . . . . . . . . . . 8 . . . . . . . . . . . . . . . 8 . . . Level 3 6 | . . . . . . . . . . . . 67 . . . . . . . . . . . . . . . 13 . . . Level 4 5 | . . . . . . . . . . . . 16 . . . . . . . . . . . . . . . 19 . . . Level 5 25 | . . . . . . . . . . . . . . . . . . . . . . . . . . . . 49 100 91 . High Security . | . . . . . . . . . . . . . . . . . . . . . . . . . . . . . . 8 . Max Security . | . . . . . . . . . . . . . . . . . . . . . . . . . . . . . . . . Peak Influence 7412 | 10 138 . 69 . 69 17 38 . . . . 1121 265 276 . . . . 50 . . . . 130 83 167 259 7412 4572 3031 . Initial 4442 | . . . 15 . . 16 . . . . . 300 265 178 . . . . . . . . . 13 72 42 37 144 4442 2836 . Average 1028 | 2 55 . 8 . 18 5 8 . . . . 853 263 189 . . . . 9 . . . . 53 24 88 148 2709 4482 2903 . Influence Increases 15242 | 30 251 202 309 . 347 26 223 60 344 . 5 1759 . 384 65 5 85 . 220 86 291 19 50 354 251 404 535 8152 276 343 166 Destroy 0b10 Robot/C 6460 | . 160 120 80 . 20 . . . 160 . . 540 . . 20 . 80 . 20 60 200 . 40 . . . 60 4580 160 160 . Destroy 0b10 Robot/NC 595 | 30 20 . 10 . 60 . 45 . 5 . 5 70 . 30 . 5 5 . 30 5 . 15 . 30 15 20 15 105 20 55 . Destroy Leader 1036 | . 44 10 . . 16 . 8 . 20 . . 150 . 10 . . . . 6 . 20 . 10 10 6 6 10 652 24 34 . Allied During Kill 415 | . . 42 33 . . . . . 54 . . 190 . . . . . . . 21 71 4 . . . . . . . . . Trap Triggered on 0b10 60 | . . . . . . . . . . . . 10 . . . . . . . . . . . . . 30 . 20 . . . Successful Hack 586 | . 17 . 3 . 36 . 36 . . . . 90 . 75 . . . . 44 . . . . 47 142 12 57 18 9 . . Select Force Hacks 230 | . . . 180 . . . . . . . . . . . . . . . 50 . . . . . . . . . . . . Disable Machine 1350 | . . . . . 15 . 15 . . . . 90 . 60 . . . . 15 . . . . . 30 . 90 870 . 30 135 Destroy Structure 1905 | . 10 . 3 . 20 26 14 . . . . 184 . 74 . . . . 40 . . . . 32 28 51 33 1322 18 34 16 Advance Influence 300 | . . . . . . . . . . . . 300 . . . . . . . . . . . . . . . . . . . Partial Spotted 525 | . . . . . 15 . 60 . . . . 15 . 45 . . . . 15 . . . . 15 15 75 30 195 30 . 15 Lose Combat Pursuer 1680 | . . 30 . . 165 . 45 60 105 . . 120 . 90 45 . . . . . . . . 120 15 210 240 390 15 30 . Miscellaneous 100 | . . . . . . . . . . . . . . . . . . . . . . . . 100 . . . . . . . Influence Decreases 15096 | 30 201 219 342 . 301 72 223 60 299 45 5 1000 504 565 139 5 20 65 220 86 180 130 30 244 305 413 344 1005 3249 1666 3129 Entered New Map 8805 | . . 25 18 . . 30 . . . 45 . . 494 77 29 . . 65 . . . 111 . 7 58 34 30 114 2963 1596 3109 Time Decay 4642 | 30 201 166 308 . 287 23 223 60 179 . 5 380 10 368 110 5 20 . 210 35 140 19 30 134 154 254 214 741 286 50 . Search Patrol Dispatched 300 | . . . . . . . . . . . . . . 100 . . . . . . . . . . . . 100 100 . . . Lost Part 144 | . . . . . 14 . . . . . . . . 20 . . . . 10 . . . . 10 . . . 50 . 20 20 Lost Ally 594 | . . 28 16 . . 19 . . 120 . . 320 . . . . . . . 51 40 . . . . . . . . . . Purge Threat 611 | . . . . . . . . . . . . 300 . . . . . . . . . . . 93 93 125 . . . . . Squads Dispatched 94 | . 2 . . . 3 . 7 . . . . 15 . 8 . . . . 8 . . . . 5 4 12 4 13 8 5 . Investigation 31 | . 1 . . . . . 2 . . . . 6 . 4 . . . . 4 . . . . 2 2 7 . 3 . . . Extermination 28 | . . . . . 2 . 3 . . . . 3 . 2 . . . . 3 . . . . 1 1 3 3 4 3 . . Reinforcement 20 | . 1 . . . 1 . 2 . . . . 2 . 2 . . . . 1 . . . . 2 1 2 1 4 . 1 . Assault 12 | . . . . . . . . . . . . 1 . . . . . . . . . . . . . . . 2 5 4 . Garrison 3 | . . . . . . . . . . . . 3 . . . . . . . . . . . . . . . . . . . Intercept . | . . . . . . . . . . . . . . . . . . . . . . . . . . . . . . . . Searches Triggered 3 | . . . . . . . . . . . . . . 1 . . . . . . . . . . . . 1 1 . . . Unchained Authorized 1 | . . . . . . . . . . . . . . . . . . . . . . . . . . . . . 1 . . Construction Impeded . | . . . . . . . . . . . . . . . . . . . . . . . . . . . . . . . . Haulers Reinforced 2 | . . . . . . . 1 . . . . 1 . . . . . . . . . . . . . . . . . . . Active Scanning Responses . | . . . . . . . . . . . . . . . . . . . . . . . . . . . . . . . . Cargo Convoy Interrupts . | . . . . . . . . . . . . . . . . . . . . . . . . . . . . . . . . Stealth | -11 -10 -10 -8 -8 -6 -6 -6 -6 -6 -6 -5 -5 -5 -5 -5 -5 -5 -4 -4 -4 -4 -4 -3 -3 -3 -2 -2 -2 -1 -1 -1 --------- Run | Yrd Mat Sub Rec Scr Fac Was Fac Low Low Dat Pro Fac Was Fac Upp Upp War Pro Fac Upp Upp Zhi Pro Res Qua Res Tes Frg Acc Com Ac0 Distress Signals 33 | . 1 . . . 2 . 1 . . . . 3 . 1 . . . . . . . . . 2 . 2 3 3 1 14 . Communications Jammed 8 | . . . . . . . . . . . . . . . . . . . . . . . . . . 8 . . . . . Distress Signals 8 | . . . . . . . . . . . . . . . . . . . . . . . . . . 8 . . . . . Times Spotted 731 | . 13 18 2 . 29 6 25 3 15 . 2 42 3 30 4 . 6 4 37 . 3 . . 13 6 35 22 330 11 13 59 Peak Tracking Total 14 | . 3 3 1 . 8 6 9 4 7 . 2 7 3 7 3 . 4 5 13 . 3 . . 7 2 14 7 13 3 5 6 Tactical Retreats 83 | . . 1 . . 7 . 4 1 3 . . 7 . 12 3 . . . 8 . . . . 2 1 5 6 19 1 2 1 ECM-based Alert Blocks 81 | . . . . . 10 . 10 . . . . 7 . 23 . . . . 31 . . . . . . . . . . . . Traps | -11 -10 -10 -8 -8 -6 -6 -6 -6 -6 -6 -5 -5 -5 -5 -5 -5 -5 -4 -4 -4 -4 -4 -3 -3 -3 -2 -2 -2 -1 -1 -1 ------- Run | Yrd Mat Sub Rec Scr Fac Was Fac Low Low Dat Pro Fac Was Fac Upp Upp War Pro Fac Upp Upp Zhi Pro Res Qua Res Tes Frg Acc Com Ac0 Traps Triggered 30 | . 1 1 . . 1 . 2 . . . . 2 . 1 . . . . . . . . . . 2 . . 18 1 1 . Indirectly . | . . . . . . . . . . . . . . . . . . . . . . . . . . . . . . . . Trap Hack Attempts 98 | . 98 . . . . . . . . . . . . . . . . . . . . . . . . . . . . . . Triggered . | . . . . . . . . . . . . . . . . . . . . . . . . . . . . . . . . Disarmed 2 | . 2 . . . . . . . . . . . . . . . . . . . . . . . . . . . . . . Reprogrammed 13 | . 6 . . . . . . . . . . 3 . . . . . . . . . . . . . 4 . . . . . Reused 6 | . . . . . . . . . . . . 1 . . . . . . . . . . . . . 3 . 2 . . . Traps Extracted . | . . . . . . . . . . . . . . . . . . . . . . . . . . . . . . . . Installed 2 | . . . . . . . . . . . . . . . . . . . . . . . . . . . . 2 . . . Triggered 6 | . . . . . . . . . . . . 1 . . . . . . . . . . . . . 3 . 2 . . . Most Traps Carried 6 | . . . . 3 3 3 3 3 3 3 3 3 3 3 3 6 6 3 3 3 3 3 3 3 3 3 3 3 . . . Machines | -11 -10 -10 -8 -8 -6 -6 -6 -6 -6 -6 -5 -5 -5 -5 -5 -5 -5 -4 -4 -4 -4 -4 -3 -3 -3 -2 -2 -2 -1 -1 -1 ---------- Run | Yrd Mat Sub Rec Scr Fac Was Fac Low Low Dat Pro Fac Was Fac Upp Upp War Pro Fac Upp Upp Zhi Pro Res Qua Res Tes Frg Acc Com Ac0 Machines Disabled 100 | . . 3 . . 1 . 1 . 3 . . 6 . 4 . . 1 . 1 . . 1 . . 3 . 6 59 . 2 9 Max in Single Turn 5 | . . 2 . . 1 . 1 . 1 . . 1 . 2 . . 1 . 1 . . 1 . . 1 . 1 5 . 1 1 Garrison Access 9 | . . . . . 1 . . . . . . 1 . 2 . . . . . . . . . 1 1 1 1 1 . . . Machines Repaired . | . . . . . . . . . . . . . . . . . . . . . . . . . . . . . . . . Machines Dismantled . | . . . . . . . . . . . . . . . . . . . . . . . . . . . . . . . . Machines Sabotaged . | . . . . . . . . . . . . . . . . . . . . . . . . . . . . . . . . Overloaded Fab Kills 1 | . . . . . . . . . . . . . . . . . . . 1 . . . . . . . . . . . . Hacking | -11 -10 -10 -8 -8 -6 -6 -6 -6 -6 -6 -5 -5 -5 -5 -5 -5 -5 -4 -4 -4 -4 -4 -3 -3 -3 -2 -2 -2 -1 -1 -1 --------- Run | Yrd Mat Sub Rec Scr Fac Was Fac Low Low Dat Pro Fac Was Fac Upp Upp War Pro Fac Upp Upp Zhi Pro Res Qua Res Tes Frg Acc Com Ac0 Machines Accessed 162 | . 3 4 12 1 11 . 13 2 1 4 . 19 . 15 . 1 3 . 13 2 . 4 . 10 12 14 6 8 2 1 1 Terminals 82 | . 3 . 6 . 7 . 6 1 1 . . 11 . 8 . . . . 6 . . . . 6 9 6 4 5 2 1 . Fabricators 10 | . . . . . 1 . 3 . . . . 1 . . . . . . 3 . . . . . . 1 1 . . . . Repair Stations 1 | . . . . . . . . . . . . . . . . . . . 1 . . . . . . . . . . . . Recycling Units 27 | . . . 6 . 1 . 2 . . . . 5 . 4 . . . . 2 . . . . 2 . 4 . 1 . . . Scanalyzers 11 | . . . . . 1 . 2 . . . . 1 . 1 . . . . 1 . . . . 1 2 1 . 1 . . . Garrison Access 10 | . . . . . 1 . . . . . . 1 . 2 . . . . . . . . . 1 1 2 1 1 . . . Total Hacks 423 | . 8 10 24 1 27 . 26 6 5 32 . 53 . 44 . 4 4 . 36 4 . 16 . 33 32 24 10 10 4 4 6 Successful 278 | . 4 10 16 1 23 . 13 6 5 32 . 29 . 30 . 4 4 . 19 4 . 16 . 14 17 14 4 4 2 1 6 Failed 144 | . 4 . 8 . 4 . 13 . . . . 24 . 14 . . . . 17 . . . . 19 14 10 6 6 2 3 . Catastrophic 25 | . . . 3 . . . 5 . . . . 3 . 2 . . . . 2 . . . . 3 1 2 1 3 . . . Database Lockouts 1 | . . . . . . . . . . . . . . . . . . . . . . . . . 1 . . . . . . Manual 137 | . 7 . 17 . 11 . 7 . . . . 27 . 19 . . 1 . 10 . . . . 13 6 10 . 4 2 3 . Terminals 227 | . 8 . 16 . 16 . 8 5 5 . . 40 . 33 . . . . 16 . . . . 24 24 11 7 6 4 4 . Fabricators 27 | . . . . . 2 . 11 . . . . 2 . . . . . . 8 . . . . . . 2 2 . . . . Repair Stations 2 | . . . . . . . . . . . . . . . . . . . 2 . . . . . . . . . . . . Recycling Units 43 | . . . 8 . 1 . 3 . . . . 9 . 5 . . . . 4 . . . . 5 . 6 . 2 . . . Scanalyzers 30 | . . . . . 7 . 4 . . . . 1 . 1 . . . . 6 . . . . 2 6 2 . 1 . . . Garrison Access 16 | . . . . . 1 . . . . . . 1 . 5 . . . . . . . . . 2 2 3 1 1 . . . Terminal Hacks 161 | . . 10 3 1 4 . 1 6 5 32 . 10 . 16 . 4 4 . 6 4 . 16 . 9 12 4 3 2 2 1 6 Record 49 | . . 7 . . . . . 5 5 11 . . . . . 4 3 . . 3 . 5 . . . . . . . . 6 Part Schematic 16 | . . . . . . . . . . 12 . . . 1 . . . . . . . 3 . . . . . . . . . Robot Schematic 6 | . . . . . . . . . . 6 . . . . . . . . . . . . . . . . . . . . . Robot Analysis 5 | . . . . . . . . . . . . . . . . . . . . . . 4 . 1 . . . . . . . Prototype ID Bank 22 | . . . 1 . . . . . . 3 . 3 . 2 . . . . 2 . . 4 . 2 2 . 2 1 . . . Open Door 5 | . . 1 . . . . . 1 . . . . . . . . 1 . 1 1 . . . . . . . . . . . Branch Access Points 6 | . . . . . . . 1 . . . . 1 . . . . . . 1 . . . . 1 1 . . . 1 . . Emergency Access Points 1 | . . . . . . . . . . . . . . 1 . . . . . . . . . . . . . . . . . Machine Index 1 | . . . . . . . . . . . . . . . . . . . . . . . . . 1 . . . . . . Terminal Index 4 | . . . . . 1 . . . . . . . . 1 . . . . . . . . . 1 1 . . . . . . Alert Level 1 | . . . . . . . . . . . . . . . . . . . . . . . . . . . . . . 1 . Unreport Threat 6 | . . . . . . . . . . . . 2 . . . . . . . . . . . 2 1 1 . . . . . Locate Traps 8 | . . . . . 2 . . . . . . 2 . 1 . . . . 2 . . . . . . 1 . . . . . Reprogram Traps 2 | . . . . . . . . . . . . 1 . . . . . . . . . . . . . 1 . . . . . Transport Status 1 | . . . . . . . . . . . . . . 1 . . . . . . . . . . . . . . . . . Extermination Status 1 | . . . . . . . . . . . . . . 1 . . . . . . . . . . . . . . . . . Recall Investigation 2 | . . . . . . . . . . . . . . . . . . . . . . . . . 2 . . . . . . Recall Extermination 1 | . . . . . . . . . . . . . . 1 . . . . . . . . . . . . . . . . . Recall Assault 1 | . . . . . . . . . . . . . . 1 . . . . . . . . . . . . . . . . . Hauler Manifests 10 | . . . 2 . 1 . . . . . . 1 . 3 . . . . . . . . . 1 2 . . . . . . Registered Components 3 | . . . . . . . . . . . . . . 1 . . . . . . . . . . 1 . 1 . . . . Registered Prototypes 3 | . . . . . . . . . . . . . . 1 . . . . . . . . . 1 . 1 . . . . . Zone Layout 3 | . . . . . . . . . . . . . . 1 . . . . . . . . . . 1 . . . 1 . . Proto ID Catalog 3 | . . 1 . 1 . . . . . . . . . . . . . . . . . . . . . . . 1 . . . Release Object 1 | . . 1 . . . . . . . . . . . . . . . . . . . . . . . . . . . . . Fabricator Hacks 8 | . . . . . 1 . 3 . . . . . . . . . . . 3 . . . . . . 1 . . . . . Network Status 3 | . . . . . 1 . 1 . . . . . . . . . . . 1 . . . . . . . . . . . . Load Schematic 3 | . . . . . . . 1 . . . . . . . . . . . 1 . . . . . . 1 . . . . . Build 2 | . . . . . . . 1 . . . . . . . . . . . 1 . . . . . . . . . . . . Repair Station Hacks 2 | . . . . . . . . . . . . . . . . . . . 2 . . . . . . . . . . . . Scan Component 1 | . . . . . . . . . . . . . . . . . . . 1 . . . . . . . . . . . . Repair 1 | . . . . . . . . . . . . . . . . . . . 1 . . . . . . . . . . . . Recycling Unit Hacks 6 | . . . 1 . 1 . 1 . . . . 2 . 1 . . . . . . . . . . . . . . . . . Retrieve Components 6 | . . . 1 . 1 . 1 . . . . 2 . 1 . . . . . . . . . . . . . . . . . Scanalyzer 21 | . . . . . 7 . 3 . . . . 1 . 1 . . . . 3 . . . . 1 3 2 . . . . . Insert Component 5 | . . . . . 1 . 1 . . . . . . . . . . . 1 . . . . . 1 1 . . . . . Analyze 2 | . . . . . 1 . 1 . . . . . . . . . . . . . . . . . . . . . . . . Retrieve Study 14 | . . . . . 5 . 1 . . . . 1 . 1 . . . . 2 . . . . 1 2 1 . . . . . Garrison Access Hacks 9 | . . . . . 1 . . . . . . 1 . 2 . . . . . . . . . 1 1 1 1 1 . . . Seal Access 9 | . . . . . 1 . . . . . . 1 . 2 . . . . . . . . . 1 1 1 1 1 . . . Unauthorized Hacks 71 | . 4 . 12 . 9 . 5 . . . . 15 . 10 . . . . 5 . . . . 3 1 6 . 1 . . . Terminals 40 | . 4 . 6 . 8 . 2 . . . . 9 . 6 . . . . 1 . . . . 1 1 2 . . . . . Assimilate 6 | . 1 . . . . . . . . . . 3 . . . . . . . . . . . . 1 1 . . . . . Botnet 11 | . 1 . 2 . 2 . 1 . . . . 1 . 1 . . . . 1 . . . . 1 . 1 . . . . . Skim 23 | . 2 . 4 . 6 . 1 . . . . 5 . 5 . . . . . . . . . . . . . . . . . Fabricators 6 | . . . . . 1 . 1 . . . . 1 . . . . . . 3 . . . . . . . . . . . . Prioritize 1 | . . . . . . . . . . . . . . . . . . . 1 . . . . . . . . . . . . Haulers 4 | . . . . . 1 . 1 . . . . 1 . . . . . . 1 . . . . . . . . . . . . Overload 1 | . . . . . . . . . . . . . . . . . . . 1 . . . . . . . . . . . . Repair Stations . | . . . . . . . . . . . . . . . . . . . . . . . . . . . . . . . . Recycling Units 25 | . . . 6 . . . 2 . . . . 5 . 4 . . . . 1 . . . . 2 . 4 . 1 . . . Tunnel 6 | . . . 6 . . . . . . . . . . . . . . . . . . . . . . . . . . . . Fedlink 19 | . . . . . . . 2 . . . . 5 . 4 . . . . 1 . . . . 2 . 4 . 1 . . . Scanalyzers . | . . . . . . . . . . . . . . . . . . . . . . . . . . . . . . . . Garrison Access . | . . . . . . . . . . . . . . . . . . . . . . . . . . . . . . . . Data Cores Recovered 5 | . . . . . 2 . 1 . . . . 1 . . . . . . 1 . . . . . . . . . . . . Used 1 | . . . . . 1 . . . . . . . . . . . . . . . . . . . . . . . . . . Hacking Detections 97 | . 3 . 7 . 9 . 9 . 1 . . 13 . 8 . . . . 10 . . . . 7 10 7 5 5 2 1 . Full Trace Events 4 | . . . . . . . . . . . . 1 . . . . . . 2 . . . . . . 1 . . . . . Feedback Events . | . . . . . . . . . . . . . . . . . . . . . . . . . . . . . . . . Feedback Blocked . | . . . . . . . . . . . . . . . . . . . . . . . . . . . . . . . . Robot Schematics Acquired 9 | . . . . . . . . . . 6 . . . . . . . . . . . . . . . . . 3 . . . Robots Built . | . . . . . . . . . . . . . . . . . . . . . . . . . . . . . . . . Authchips . | . . . . . . . . . . . . . . . . . . . . . . . . . . . . . . . . Time . | . . . . . . . . . . . . . . . . . . . . . . . . . . . . . . . . Total Robot Build Rating . | . . . . . . . . . . . . . . . . . . . . . . . . . . . . . . . . Part Schematics Acquired 90 | . . . . 14 13 1 10 7 3 12 1 2 . 3 . . 2 1 3 . 1 3 . . . . . 14 . . . Parts Built 2 | . . . . . . . 1 . . . . . . . . . . . 1 . . . . . . . . . . . . Authchips 1 | . . . . . . . 1 . . . . . . . . . . . . . . . . . . . . . . . . Time 106 | . . . . . . . 42 . . . . . . . . . . . 64 . . . . . . . . . . . . Total Part Build Rating 12 | . . . . . . . 4 . . . . . . . . . . . 8 . . . . . . . . . . . . Part Studies Acquired 14 | . . . . . 5 . 1 . . . . 1 . 1 . . . . 2 . . . . 1 2 1 . . . . . Parts Repaired 1 | . . . . . . . . . . . . . . . . . . . 1 . . . . . . . . . . . . Time 16 | . . . . . . . . . . . . . . . . . . . 16 . . . . . . . . . . . . Parts Recycled . | . . . . . . . . . . . . . . . . . . . . . . . . . . . . . . . . Recycled Matter . | . . . . . . . . . . . . . . . . . . . . . . . . . . . . . . . . Retrieved Matter . | . . . . . . . . . . . . . . . . . . . . . . . . . . . . . . . . Retrieved Components 9 | . . . 1 . . . 2 . . . . 6 . . . . . . . . . . . . . . . . . . . Parts Scanalyzed 2 | . . . . . 1 . 1 . . . . . . . . . . . . . . . . . . . . . . . . Part Schematics Acquired 2 | . . . . . 1 . 1 . . . . . . . . . . . . . . . . . . . . . . . . Parts Damaged . | . . . . . . . . . . . . . . . . . . . . . . . . . . . . . . . . Bothacking | -11 -10 -10 -8 -8 -6 -6 -6 -6 -6 -6 -5 -5 -5 -5 -5 -5 -5 -4 -4 -4 -4 -4 -3 -3 -3 -2 -2 -2 -1 -1 -1 ------------ Run | Yrd Mat Sub Rec Scr Fac Was Fac Low Low Dat Pro Fac Was Fac Upp Upp War Pro Fac Upp Upp Zhi Pro Res Qua Res Tes Frg Acc Com Ac0 Used RIF Installer . | . . . . . . . . . . . . . . . . . . . . . . . . . . . . . . . . Robots Hacked 1 | . . . . . . . . . . . . 1 . . . . . . . . . . . . . . . . . . . Non-combat 1 | . . . . . . . . . . . . 1 . . . . . . . . . . . . . . . . . . . Combat . | . . . . . . . . . . . . . . . . . . . . . . . . . . . . . . . . Robot Hacks Applied 1 | . . . . . . . . . . . . 1 . . . . . . . . . . . . . . . . . . . find_chute 1 | . . . . . . . . . . . . 1 . . . . . . . . . . . . . . . . . . . Relay Couplers Released . | . . . . . . . . . . . . . . . . . . . . . . . . . . . . . . . . Fabnet Peak Effective % . | . . . . . . . . . . . . . . . . . . . . . . . . . . . . . . . . Robots Rewired . | . . . . . . . . . . . . . . . . . . . . . . . . . . . . . . . . Allies Hacked . | . . . . . . . . . . . . . . . . . . . . . . . . . . . . . . . . Hacks Repelled . | . . . . . . . . . . . . . . . . . . . . . . . . . . . . . . . . Allies | -11 -10 -10 -8 -8 -6 -6 -6 -6 -6 -6 -5 -5 -5 -5 -5 -5 -5 -4 -4 -4 -4 -4 -3 -3 -3 -2 -2 -2 -1 -1 -1 -------- Run | Yrd Mat Sub Rec Scr Fac Was Fac Low Low Dat Pro Fac Was Fac Upp Upp War Pro Fac Upp Upp Zhi Pro Res Qua Res Tes Frg Acc Com Ac0 Total Allies 67 | . 1 11 . . . 19 . . 6 . 4 13 . . . . . . . 7 4 . 1 . 1 . . . . . . Largest Group 19 | . 1 10 7 6 . 19 . . 4 . 4 4 . . . . . . . 5 4 4 4 . 1 . . . . . . Highest-Rated Group 702 | . 10 186 133 114 . 702 . . 324 . 324 324 . . . . . . . 324 324 324 324 . 10 . . . . . . Highest-Rated Ally 81 | . 10 19 19 19 . 50 . . 81 . 81 81 . . . . . . . 81 81 81 81 . 10 . . . . . . Initial UFD Resources 124 | . . . . . 23 23 23 37 37 37 41 41 61 61 69 69 69 73 73 83 83 83 85 85 99 101 119 119 124 124 124 Total Orders . | . . . . . . . . . . . . . . . . . . . . . . . . . . . . . . . . Ally Attacks 392 | . . 59 31 . . 75 . . 37 . 1 119 . . . . . . . 17 31 . 22 . . . . . . . . Total Damage 14915 | . . 996 567 . . 5010 . . 1787 . 24 3964 . . . . . . . 448 1510 . 609 . . . . . . . . Kills 80 | . . 8 4 . . 15 . . 8 . 1 27 . . . . . . . 3 12 . 2 . . . . . . . . Allies Corrupted . | . . . . . . . . . . . . . . . . . . . . . . . . . . . . . . . . Allies Melted 1 | . . . . . . . . . . . . 1 . . . . . . . . . . . . . . . . . . . Intel | -11 -10 -10 -8 -8 -6 -6 -6 -6 -6 -6 -5 -5 -5 -5 -5 -5 -5 -4 -4 -4 -4 -4 -3 -3 -3 -2 -2 -2 -1 -1 -1 ------- Run | Yrd Mat Sub Rec Scr Fac Was Fac Low Low Dat Pro Fac Was Fac Upp Upp War Pro Fac Upp Upp Zhi Pro Res Qua Res Tes Frg Acc Com Ac0 Active Infowar (turns) 17087 | 52 652 334 . . 880 106 687 529 738 24 139 880 23 856 248 181 208 73 646 356 302 153 161 334 370 549 445 3808 634 1726 993 Optics 16048 | . . . . . 880 106 687 529 738 24 139 880 23 856 248 181 208 73 646 356 302 153 161 333 370 549 445 3808 634 1726 993 Sensors 7627 | . . . . . 625 106 678 529 738 24 139 868 23 744 . . . . 147 356 300 146 161 334 370 549 430 360 . . . Terrain 96 | 48 48 . . . . . . . . . . . . . . . . . . . . . . . . . . . . . . Structural 6860 | . . . . . . . 204 529 738 24 139 874 23 563 248 181 208 73 646 356 302 153 161 334 370 549 185 . . . . Seismic 1224 | 52 652 334 . . 186 . . . . . . . . . . . . . . . . . . . . . . . . . . Cloaking 1551 | . . . . . . . . . . . . . . . . . . . . . . . . . . . . 28 631 892 . Jamming 1360 | . . . . . . . . . . . . . . . . . . . . . . 94 161 175 121 412 92 305 . . . ECM 1150 | . . . . . 65 . 107 . . . . 11 . 371 14 . 1 . 569 10 . . . . . . . 2 . . . Robot Analysis Total 5 | . . . . . . . . . . . . . . . . . . . . . . 4 . 1 . . . . . . . Derelict Logs Recovered 19 | . . 1 . 3 . . . 2 1 . 2 . . . 3 3 . 1 . 2 1 . . . . . . . . . . Drone Launches . | . . . . . . . . . . . . . . . . . . . . . . . . . . . . . . . . Drone Recoveries . | . . . . . . . . . . . . . . . . . . . . . . . . . . . . . . . . Exploration | -11 -10 -10 -8 -8 -6 -6 -6 -6 -6 -6 -5 -5 -5 -5 -5 -5 -5 -4 -4 -4 -4 -4 -3 -3 -3 -2 -2 -2 -1 -1 -1 ------------- Run | Yrd Mat Sub Rec Scr Fac Was Fac Low Low Dat Pro Fac Was Fac Upp Upp War Pro Fac Upp Upp Zhi Pro Res Qua Res Tes Frg Acc Com Ac0 Turns Passed 27748 | 160 652 4530 3343 3013 881 106 687 529 738 24 139 880 23 856 248 181 208 73 646 356 302 153 161 334 370 549 445 3808 634 1726 993 Spaces Moved 37929 | 69 285 2318 1045 1629 2268 313 1906 816 1018 86 351 2166 75 1769 795 635 578 262 1424 800 823 284 596 943 881 1385 1145 5968 815 2285 2196 Core 5 | 5 . . . . . . . . . . . . . . . . . . . . . . . . . . . . . . . Treads 3558 | 64 285 2147 29 1033 . . . . . . . . . . . . . . . . . . . . . . . . . . . Legs . | . . . . . . . . . . . . . . . . . . . . . . . . . . . . . . . . Wheels 1554 | . . 171 1016 367 . . . . . . . . . . . . . . . . . . . . . . . . . . . Hover 10065 | . . . . . . . . . . . . . . . . . . . . . . . . . . . . 4769 815 2285 2196 Flight 22747 | . . . . 229 2268 313 1906 816 1018 86 351 2166 75 1769 795 635 578 262 1424 800 823 284 596 943 881 1385 1145 1199 . . . Fastest Speed 17 | 50 160 160 160 110 23 28 28 28 28 28 28 27 27 22 26 26 22 26 26 27 27 27 23 23 20 24 24 17 33 29 20 Average Speed 48 | 152 160 163 205 175 27 28 28 28 28 28 28 27 27 25 26 26 25 26 26 27 27 27 25 23 23 24 24 30 33 35 26 Slowest Speed 560 | 160 160 240 560 560 93 28 93 28 93 28 28 93 27 27 26 26 26 26 27 27 27 27 27 27 24 24 25 120 33 79 39 Overloaded Moves 318 | . . . . . 75 . . . . . . . . 184 . . 10 . . . . . . 8 1 . . 40 . . . Propulsion Burnouts . | . . . . . . . . . . . . . . . . . . . . . . . . . . . . . . . . Robots Hopped 64 | . . . . . 15 . 5 . . . . 2 . 4 . . . . 8 . . . . 1 2 15 7 5 . . . Potential Cave-ins 11 | . . . . . . . . . . . . . . . . . . . . . . . . . . . . 9 . 2 . Cave-ins Triggered . | . . . . . . . . . . . . . . . . . . . . . . . . . . . . . . . . Teleports 2 | . . . . . . . . . . . . . . . . . . . . . . . . . . . . . . 1 1 Exploration Rate (%) 72 | 4 55 97 95 90 48 95 69 89 94 76 63 61 78 45 87 93 89 55 50 89 93 98 85 32 94 49 95 88 20 70 76 Regions Visited 31 Branch Regions 20 Pre-discovered Areas 18 | . . . 6 2 . . 1 1 . 1 . 3 . . 1 . . . . . . 3 . . . . . . . . . Known Exits Taken 21 | . . . . . . . 1 1 1 1 1 . . 1 1 1 1 1 1 1 1 1 1 1 1 1 1 1 1 . . Unknown Exits Taken 6 | 1 1 1 1 1 . . . . . . . . . . . . . . . . . . . . . . . . . 1 . Scrap Searched 53 | . . 14 . 10 . . . 2 4 . 2 . . . 3 5 . 4 . 5 3 . 1 . . . . . . . . Spaces Dug 228 | . 10 . . . 20 . 13 5 10 . 2 14 . 31 3 2 1 2 19 3 5 . 1 16 11 16 8 20 6 7 3 Terrain Destroyed 898 | . 10 14 1 . 20 . 14 5 11 . 2 15 . 37 4 2 51 2 20 3 5 . 1 16 12 17 11 604 6 12 3 Melee 204 | . . . . . 19 . 13 5 10 . 2 13 . 31 3 2 1 2 19 3 5 . 1 16 11 16 8 12 6 3 3 Projectile 97 | . 3 1 1 . 1 . 1 . 1 . . 1 . 6 1 . . . 1 . . . . . 1 1 3 66 . 9 . AOE 596 | . 7 13 . . . . . . . . . . . . . . 50 . . . . . . . . . . 526 . . . Terrain Rammed . | . . . . . . . . . . . . . . . . . . . . . . . . . . . . . . . . Walls Destroyed . | . . . . . . . . . . . . . . . . . . . . . . . . . . . . . . . . Machines Disabled . | . . . . . . . . . . . . . . . . . . . . . . . . . . . . . . . . Actions | -11 -10 -10 -8 -8 -6 -6 -6 -6 -6 -6 -5 -5 -5 -5 -5 -5 -5 -4 -4 -4 -4 -4 -3 -3 -3 -2 -2 -2 -1 -1 -1 --------- Run | Yrd Mat Sub Rec Scr Fac Was Fac Low Low Dat Pro Fac Was Fac Upp Upp War Pro Fac Upp Upp Zhi Pro Res Qua Res Tes Frg Acc Com Ac0 Total 45508 | 91 442 2920 2246 1774 2421 330 1985 1108 1443 85 387 2352 77 2059 822 644 624 263 1623 917 890 335 599 993 974 1532 1263 7579 1160 3110 2460 Wait 4981 | . 14 441 1134 80 22 18 20 283 397 . 31 60 3 188 12 5 7 . 132 102 57 32 . 2 15 127 44 830 307 603 15 Move 37774 | 68 284 2317 1044 1628 2240 312 1896 815 1017 85 350 2162 74 1760 794 634 577 261 1407 799 822 283 595 940 876 1359 1130 5953 814 2283 2195 Hop 56 | . . . . . 13 . 4 . . . . 2 . 4 . . . . 8 . . . . 1 2 10 7 5 . . . Pick Up 268 | 1 14 31 29 31 24 . 2 1 4 . . 8 . 3 1 . 5 . 6 1 1 1 . 1 3 1 5 56 2 30 7 Fast Attach 140 | 7 . 1 . 2 9 . 3 1 . . 2 3 . . . . 3 . 7 . 2 3 1 6 4 2 11 41 . 18 14 Attach 74 | . . 1 . 2 12 . 2 . 1 . . 2 . 2 1 . 6 . 4 . . 1 1 1 1 1 4 15 2 9 6 Detach 63 | . . 1 . 1 5 . 3 . . . . 3 . . 2 . 6 . 3 . . 1 . 2 1 1 3 19 . 5 7 Swap 298 | . 9 18 3 6 15 . 12 1 3 . . 14 . 21 1 2 1 . 2 3 . 2 . 8 7 . 9 98 8 33 22 Drop 270 | . . 22 25 18 18 . 3 2 3 . 2 9 . 3 1 . 6 . 9 2 2 2 1 5 7 3 16 66 . 26 19 Fire 454 | 15 22 84 11 . 1 . 2 . 2 . . 26 . 20 1 . 11 . 2 . . . . . 3 1 3 230 . 20 . Melee 876 | . . . . 6 62 . 38 5 16 . 2 48 . 48 9 3 1 2 43 10 6 10 1 27 28 27 31 169 27 82 175 Ram . | . . . . . . . . . . . . . . . . . . . . . . . . . . . . . . . . Kick . | . . . . . . . . . . . . . . . . . . . . . . . . . . . . . . . . Crush 1 | . 1 . . . . . . . . . . . . . . . . . . . . . . . . . . . . . . Escape Stasis 128 | . . . . . . . . . . . . 15 . 10 . . . . . . . . . . 27 . . 75 . 1 . Rewire 5 | . . 4 . . . . . . . . . . . . . . 1 . . . . . . . . . . . . . . Trap 100 | . 98 . . . . . . . . . . . . . . . . . . . . . . . . . . 2 . . . Miscellaneous 20 | . . . . . . . . . . . . . . . . . . . . . . . . . . . . 20 . . . Route ------- -11/Scrapyard -10/Materials (discovered 3 exits: [*Mat] / [*Min] / *Sub) -10/Subcaves (discovered 3 exits: [*Mat x2] / *Rec) -8/Recycling (discovered 2 exits: *Fac / *Scr) -8/Scraptown (discovered 2 exits: *Fac x2) -6/Factory (discovered 4 exits: *Fac x2 / *Low x2) -6/Waste -6/Factory (discovered 4 exits: *Fac x2 / *Low x2) -6/Lower Caves -6/Lower Caves (discovered 2 exits: *Fac / *Dat) -6/Data Miner -5/Proximity Caves -5/Factory (discovered 4 exits: *Fac x2 / *Upp x2) -5/Waste -5/Factory (discovered 5 exits: *Fac x4 / *Upp) -5/Upper Caves -5/Upper Caves (discovered 2 exits: *Fac / *War) -5/Warlord -4/Proximity Caves -4/Factory (discovered 7 exits: *Res x2 / *Upp x2 / *Ext x2 / Arm) -4/Upper Caves -4/Upper Caves (discovered 2 exits: *Res / *Zhi) -4/Zhirov -3/Proximity Caves -3/Research (discovered 2 exits: *Qua x2) -3/Quarantine -2/Research (discovered 2 exits: *Acc / *Tes) -2/Testing (discovered 3 exits: *Acc / [*Sec] / *Frg) -2/Protoforge -1/Access -1/Command (discovered 3 exits: [*Sur x2] / *Ac0) -1/Access_0 0b11 Command History --------- Turn | Location | Event 3 | -11/Scrapyard | Discovered new exit (range 16) 161 | -11/Scrapyard | Entered Materials 332 | -10/Materials | Build established: Mutant 453 | -10/Materials | Discovered new exit (range 13) 636 | -10/Materials | Discovered new exit (range 15) 780 | -10/Materials | Discovered new exit (range 13) 813 | -10/Materials | Entered Subcaves 813 | -10/Subcaves | Accompanied by 1 ally 814 | -10/Subcaves | Approached by a straggling Scientist 1050 | -10/Subcaves | Ambushed by angry Subdweller bent on revenge 1140 | -10/Subcaves | Learned 2 Materials zone layouts 1247 | -10/Subcaves | Visited triangular shrine 1257 | -10/Subcaves | Found Prototype Device 1257 | -10/Subcaves | Identified V3-11A's Pendant 1262 | -10/Subcaves | Befriended Subdweller 1387 | -10/Subcaves | Befriended Subdweller 1393 | -10/Subcaves | Shifting Twisted Machinery released Sub. Power Source 1397 | -10/Subcaves | Befriended Subdweller 1422 | -10/Subcaves | Shifting Twisted Machinery released Shrapnel Trap 1470 | -10/Subcaves | Disturbed a concealed Subdweller 1782 | -10/Subcaves | Befriended Subdweller 1880 | -10/Subcaves | Shifting Twisted Machinery released Sub. Shrapnel Launcher 1912 | -10/Subcaves | Befriended Subdweller 1925 | -10/Subcaves | Shifting Twisted Machinery released Sub. Power Source 2037 | -10/Subcaves | Befriended Subdweller 2270 | -10/Subcaves | Visited Clippyterm 2274 | -10/Subcaves | Learned Research security intel 2532 | -10/Subcaves | Befriended Subdweller 2757 | -10/Subcaves | Befriended Subdweller 2808 | -10/Subcaves | A swath of the cavern ceiling suddenly collapsed 2817 | -10/Subcaves | Befriended Subdweller 2822 | -10/Subcaves | Befriended Subdweller 2852 | -10/Subcaves | Discovered new exit (range 14) 2894 | -10/Subcaves | Lost 4 allies 3260 | -10/Subcaves | Ambushed by angry Subdweller bent on revenge 3262 | -10/Subcaves | Befriended Subdweller 3949 | -10/Subcaves | Disturbed a concealed Subdweller 4003 | -10/Subcaves | Discovered new exit (range 9) 4235 | -10/Subcaves | A swath of the cavern ceiling suddenly collapsed 4447 | -10/Subcaves | Visited 4L-MR0's lab 4480 | -10/Subcaves | Found Gun Armor 4542 | -10/Subcaves | Discovered new exit (range 11) 5109 | -10/Subcaves | Found SUBCON Basin 5343 | -10/Subcaves | Entered Recycling 5343 | -8/Recycling | Accompanied by 7 allies 5356 | -8/Recycling | Build established: Hauler-Mutant 5618 | -8/Recycling | Discovered new exit (range 13) 6353 | -8/Recycling | Scanned before Scraplab entrance 6383 | -8/Recycling | Entered Scraplab 6471 | -8/Recycling | Discovered new exit (range 3) 7784 | -8/Recycling | Found SUBCON Basin 8686 | -8/Recycling | Entered Scraptown 8686 | -8/Scraptown | Accompanied by 6 allies 8865 | -8/Scraptown | Delivered V3-11A's Pendant to T0-NE2 in exchange for information 9164 | -8/Scraptown | Visited UFD Registry 9164 | -8/Scraptown | Registered with UFD as "Fissionslider" 9193 | -8/Scraptown | Visited CR-KLE's Repair Center 9238 | -8/Scraptown | Visited Comm Corps 9311 | -8/Scraptown | Scanned Subdweller tech in exchange for log data 9315 | -8/Scraptown | Learned Research terminal intel 9317 | -8/Scraptown | Learned Factory stockpile data 9319 | -8/Scraptown | Learned location of Warlord (-5) 9434 | -8/Scraptown | Discovered new exit (range 13) 9749 | -8/Scraptown | Build established: Mutant 10018 | -8/Scraptown | Visited IN-MT5's Study 10055 | -8/Scraptown | Visited Red Mages 10081 | -8/Scraptown | Visited Bundlers 10334 | -8/Scraptown | Visited Assassins FH 10400 | -8/Scraptown | Visited Science Guys 10507 | -8/Scraptown | Received an X-ray algorithm 10518 | -8/Scraptown | Visited Observation Area 10538 | -8/Scraptown | Tech Extrapolator generated special schematic: Machine Rigger 10547 | -8/Scraptown | Visited Science Testing Area 10674 | -8/Scraptown | Murdered 6 allies 10765 | -8/Scraptown | Visited Supply Room 10801 | -8/Scraptown | Visited Research Penetration Think Tank 10834 | -8/Scraptown | Visited Infowarlord's Domain 10852 | -8/Scraptown | Found Exp. Signal Interpreter 10876 | -8/Scraptown | Visited DA-N13 Charitable Foundation 10882 | -8/Scraptown | Found DCF Scrap (31 items) 10976 | -8/Scraptown | Visited Botcube Research 11004 | -8/Scraptown | Visited Junk Repository 11093 | -8/Scraptown | Visited Junk Repository 11315 | -8/Scraptown | CR-KLE repaired 5 parts 11600 | -8/Scraptown | Met Optimus 11600 | -8/Scraptown | Accepted into 0bPrime 11696 | -8/Scraptown | Discovered new exit (range 3) 11699 | -8/Scraptown | Entered Factory 11699 | -6/Factory | Evolved 8 slots: Propulsion x3, Utility x5 11793 | -6/Factory | Discovered new exit (range 20) 11997 | -6/Factory | Tech Extrapolator generated special schematic: Deep Structural Scanner 12191 | -6/Factory | Discovered new exit (range 15) 12377 | -6/Factory | Tech Extrapolator generated special schematic: Active Sensor Spoofer 12500 | -6/Factory | Discovered new exit (range 20) 12540 | -6/Factory | Discovered new exit (range 16) 12574 | -6/Factory | Identified exit to Factory 12580 | -6/Factory | Sucked down chute 12580 | -6/Factory | Entered Waste 12582 | -6/Waste | Spotted C-40 Crusher 12585 | -6/Waste | Spotted C-40 Crusher 12587 | -6/Waste | Spotted C-40 Crusher 12591 | -6/Waste | Spotted C-40 Crusher 12598 | -6/Waste | Spotted C-40 Crusher 12600 | -6/Waste | Spotted C-40 Crusher 12614 | -6/Waste | Discovered new exit (range 12) 12628 | -6/Waste | Warlord forces began an assault 12665 | -6/Waste | Allies destroyed C-40 Crusher 12666 | -6/Waste | Allies destroyed C-40 Crusher 12686 | -6/Waste | Identified exit to Factory 12686 | -6/Waste | Entered Factory 12709 | -6/Factory | Lost 12 allies 12801 | -6/Factory | Loaded intel: 8 recycling unit locations 12812 | -6/Factory | Build established: Scout 12889 | -6/Factory | Learned location of Protoforge (-2) 12905 | -6/Factory | Assembled infested ambush trap array 12905 | -6/Factory | Assembled infested ambush trap array 13076 | -6/Factory | Tech Extrapolator generated special schematic: Energy Deflector 13090 | -6/Factory | Discovered exit to Factory (range 19) 13167 | -6/Factory | Fabricated Deep Structural Scanner (x1) 13332 | -6/Factory | Discovered exit to Factory (range 10) 13337 | -6/Factory | Identified exit to Lower Caves 13373 | -6/Factory | Entered Lower Caves 13390 | -6/Lower Caves | Learned Factory machine intel 13436 | -6/Lower Caves | Encountered a Warlord checkpoint 13600 | -6/Lower Caves | Discovered new exit (range 19) 13612 | -6/Lower Caves | Identified exit to Lower Caves 13634 | -6/Lower Caves | Learned Extension terminal intel 13634 | -6/Lower Caves | Learned Research terminal intel 13634 | -6/Lower Caves | Learned Factory security intel 13634 | -6/Lower Caves | Learned Research trap positions 13902 | -6/Lower Caves | Entered another Lower Caves area 13906 | -6/Lower Caves | Discovered exit to Factory (range 15) 13978 | -6/Lower Caves | Tech Extrapolator generated special schematic: Heat Bomb Trap 13983 | -6/Lower Caves | Learned location of 1 exit from Proximity Caves 14033 | -6/Lower Caves | Prototype Device suddenly appears! 14034 | -6/Lower Caves | Found Prototype Device 14052 | -6/Lower Caves | Identified Amulet of Y3-NDR 14108 | -6/Lower Caves | Joined by bewildered Wizard 14109 | -6/Lower Caves | Joined by bewildered Wizard 14110 | -6/Lower Caves | Joined by bewildered Wizard 14119 | -6/Lower Caves | Joined by bewildered Wizard 14131 | -6/Lower Caves | Spotted B-75 Beast 14184 | -6/Lower Caves | Allies destroyed B-75 Beast 14188 | -6/Lower Caves | Joined by bewildered Wizard 14188 | -6/Lower Caves | Joined by bewildered Wizard 14199 | -6/Lower Caves | Discovered new exit (range 20) 14207 | -6/Lower Caves | Identified exit to Data Miner 14209 | -6/Lower Caves | Lost 3 allies 14257 | -6/Lower Caves | Learned Research garrison access intel 14257 | -6/Lower Caves | Learned Research stockpile data 14272 | -6/Lower Caves | Attracted the attention of an 0b10 base 14300 | -6/Lower Caves | Lost 3 allies 14640 | -6/Lower Caves | Entered Data Miner 14640 | -6/Data Miner | Discovered new exit (range 6) 14645 | -6/Data Miner | Met Data Miner 14653 | -6/Data Miner | Learned location of Section 7 (-2) 14653 | -6/Data Miner | Acquired the access code to Warlord's prototype stash 14658 | -6/Data Miner | Received God Mode back door access code from Data Miner 14664 | -6/Data Miner | Identified exit to Proximity Caves 14664 | -6/Data Miner | Entered Proximity Caves 14666 | -5/Proximity Caves | Spotter reported a threat 14678 | -5/Proximity Caves | Spotter reported a threat 14702 | -5/Proximity Caves | Learned location of 1 exit from Factory 14753 | -5/Proximity Caves | Learned location of 1 exit from Proximity Caves 14763 | -5/Proximity Caves | Joined by bewildered Wizard 14763 | -5/Proximity Caves | Joined by bewildered Wizard 14766 | -5/Proximity Caves | Joined by bewildered Wizard 14768 | -5/Proximity Caves | Joined by bewildered Wizard 14803 | -5/Proximity Caves | Entered Factory 14803 | -5/Factory | Accompanied by 4 allies 14803 | -5/Factory | Evolved 2 slots: Utility x2 14804 | -5/Factory | Identified exit to Factory 14806 | -5/Factory | Loaded intel: 241 machine locations 14841 | -5/Factory | Loaded intel: 8 recycling unit locations 14846 | -5/Factory | Identified exit to Upper Caves 14926 | -5/Factory | Garrison activated, responded to threat 15064 | -5/Factory | Joined by bewildered Wizard 15075 | -5/Factory | Joined by bewildered Wizard 15075 | -5/Factory | Joined by bewildered Wizard 15075 | -5/Factory | Joined by bewildered Wizard 15097 | -5/Factory | Build established: Hacker-Scout 15103 | -5/Factory | First assault squad dispatched 15157 | -5/Factory | Lost 4 allies 15266 | -5/Factory | Discovered exit to Factory (range 7) 15320 | -5/Factory | Watched by a mysterious "MATRIX" hacker. 15432 | -5/Factory | Learned location of Upper Caves (-4) 15484 | -5/Factory | Learned Testing emergency access door positions 15525 | -5/Factory | Learned Testing trap positions 15554 | -5/Factory | Learned location of 1 exit from Proximity Caves 15573 | -5/Factory | Learned Research scanalyzer intel 15584 | -5/Factory | Learned Research trap positions 15601 | -5/Factory | Learned Extension stockpile data 15624 | -5/Factory | Learned Extension security intel 15683 | -5/Factory | Manually triggered Chute Trap 15683 | -5/Factory | Sucked down chute 15683 | -5/Factory | Entered Waste 15686 | -5/Waste | Spotted C-40 Crusher 15686 | -5/Waste | Spotted C-40 Crusher 15687 | -5/Waste | Spotted C-40 Crusher 15695 | -5/Waste | Spotted C-40 Crusher 15699 | -5/Waste | Discovered new exit (range 11) 15699 | -5/Waste | Spotted C-40 Crusher 15706 | -5/Waste | Identified exit to Factory 15706 | -5/Waste | Entered Factory 15757 | -5/Factory | Loaded intel: 8 recycling unit locations 15765 | -5/Factory | Discovered exit to Upper Caves (range 18) 15799 | -5/Factory | Found Prototype Launcher 15816 | -5/Factory | Identified Mni. Smartbomb Launcher 15905 | -5/Factory | Discovered exit to Factory (range 11) 16176 | -5/Factory | Learned Research security intel 16206 | -5/Factory | Discovered exit to Factory (range 3) 16244 | -5/Factory | Learned location of 1 exit from Proximity Caves 16306 | -5/Factory | Search patrols dispatched 16433 | -5/Factory | Learned Research scanalyzer intel 16490 | -5/Factory | Learned Quarantine stockpile data 16562 | -5/Factory | Entered Upper Caves 16564 | -5/Upper Caves | Spotted B-75 Beast 16600 | -5/Upper Caves | Attracted the attention of an 0b10 checkpoint 16689 | -5/Upper Caves | Learned Factory terminal intel 16757 | -5/Upper Caves | Build established: Hacker-Sprinter 16777 | -5/Upper Caves | Discovered new exit (range 21) 16788 | -5/Upper Caves | Learned Factory emergency access door positions 16810 | -5/Upper Caves | Identified exit to Upper Caves 16810 | -5/Upper Caves | Entered another Upper Caves area 16818 | -5/Upper Caves | Encountered a Warlord checkpoint 16928 | -5/Upper Caves | Learned location of 1 exit from Proximity Caves 16931 | -5/Upper Caves | Learned Extension trap positions 16931 | -5/Upper Caves | Learned Factory security intel 16931 | -5/Upper Caves | Learned Armory garrison access intel 16933 | -5/Upper Caves | Learned 4 Factory zone layouts 16935 | -5/Upper Caves | Learned location of 1 exit from Proximity Caves 16987 | -5/Upper Caves | Discovered new exit (range 19) 16991 | -5/Upper Caves | Identified exit to Warlord 16991 | -5/Upper Caves | Entered Warlord 16992 | -5/Warlord | Identified exit to Proximity Caves 17080 | -5/Warlord | Opened Warlord's prototype stash 17085 | -5/Warlord | Found Prototype Hackware 17095 | -5/Warlord | Visited the Vortex Lab 17096 | -5/Warlord | Found Prototype Piercing Weapon 17096 | -5/Warlord | Identified Vortex Lance 17098 | -5/Warlord | Found Prototype Energy Cannon 17098 | -5/Warlord | Identified Vortex Cannon 17101 | -5/Warlord | Found Prototype Energy Gun 17101 | -5/Warlord | Identified Vortex Rifle 17104 | -5/Warlord | Identified System Mapper 17105 | -5/Warlord | Found Vortex Lance 17113 | -5/Warlord | Found Vortex Cannon 17117 | -5/Warlord | Warlord's base attacked by MAIN.C 17129 | -5/Warlord | Rebuked by Warlord 17199 | -5/Warlord | Entered Proximity Caves 17225 | -4/Proximity Caves | Learned 4 Research zone layouts 17272 | -4/Proximity Caves | Entered Factory 17272 | -4/Factory | Evolved 2 slots: Power x1, Propulsion x1 17273 | -4/Factory | Identified exit to Research 17277 | -4/Factory | Loaded intel: 28 terminal locations 17321 | -4/Factory | Repaired Lgt. Fission Core+ 17510 | -4/Factory | Loaded intel: 8 recycling unit locations 17543 | -4/Factory | Identified exit to Upper Caves 17543 | -4/Factory | Identified exit to Extension 17543 | -4/Factory | Identified exit to Armory 17733 | -4/Factory | Spotted B-86 Titan 17744 | -4/Factory | Discovered exit to Research (range 19) 17905 | -4/Factory | Fabricated Impulse Thruster Array (x1) 17918 | -4/Factory | Entered Upper Caves 17924 | -4/Upper Caves | Entered an active Warlord outpost 17926 | -4/Upper Caves | A Commander dispatched an escort 17928 | -4/Upper Caves | Learned Extension terminal intel 17949 | -4/Upper Caves | Learned 12 Research zone layouts 18058 | -4/Upper Caves | Joined by bewildered Wizard 18059 | -4/Upper Caves | Joined by bewildered Wizard 18061 | -4/Upper Caves | Joined by bewildered Wizard 18188 | -4/Upper Caves | Discovered new exit (range 19) 18195 | -4/Upper Caves | Identified exit to Upper Caves 18198 | -4/Upper Caves | Joined by bewildered Wizard 18204 | -4/Upper Caves | Build established: Hacker-Scout 18274 | -4/Upper Caves | Entered another Upper Caves area 18274 | -4/Upper Caves | Accompanied by 4 allies 18299 | -4/Upper Caves | Learned Research emergency access door positions 18310 | -4/Upper Caves | Discovered exit to Research (range 18) 18366 | -4/Upper Caves | Encountered a Warlord checkpoint 18386 | -4/Upper Caves | Found Alien Artifact 18386 | -4/Upper Caves | Identified Core Expander 18386 | -4/Upper Caves | Installed Core Expander, added new Propulsion slot 18414 | -4/Upper Caves | Joined by bewildered Wizard 18414 | -4/Upper Caves | Joined by bewildered Wizard 18469 | -4/Upper Caves | Joined by bewildered Wizard 18470 | -4/Upper Caves | Joined by bewildered Wizard 18508 | -4/Upper Caves | Discovered new exit (range 6) 18512 | -4/Upper Caves | Identified exit to Zhirov 18576 | -4/Upper Caves | Entered Zhirov 18576 | -4/Zhirov | Accompanied by 4 allies 18576 | -4/Zhirov | Discovered new exit (range 3) 18586 | -4/Zhirov | Learned location of Quarantine (-3) 18586 | -4/Zhirov | Learned location of Command (-1) 18595 | -4/Zhirov | Found Alien Artifact 18595 | -4/Zhirov | Identified Integrated Dissipator 18595 | -4/Zhirov | Installed Integrated Dissipator, increased core heat dissipation (+20) 18638 | -4/Zhirov | Found Alien Artifact 18652 | -4/Zhirov | Cloak Generator disabled 18662 | -4/Zhirov | Enhanced Grunts warped into view 18719 | -4/Zhirov | Identified exit to Proximity Caves 18729 | -4/Zhirov | Entered Proximity Caves 18729 | -3/Proximity Caves | Accompanied by 3 allies 18822 | -3/Proximity Caves | Joined by bewildered Wizard 18890 | -3/Proximity Caves | Entered Research 18890 | -3/Research | Evolved 2 slots: Propulsion x1, Utility x1 18891 | -3/Research | Identified exit to Quarantine 18893 | -3/Research | Loaded intel: 69 trap records 18897 | -3/Research | Loaded intel: 25 terminal locations 18898 | -3/Research | Loaded intel: 6 scanalyzer locations 18899 | -3/Research | Loaded intel: 4 garrison access locations 18946 | -3/Research | Loaded intel: 5 recycling unit locations 18957 | -3/Research | Build established: Hacker-Ninja 19064 | -3/Research | Targeted by mysterious "MATRIX" hacker. 19222 | -3/Research | Spotted B-90 Cyclops 19224 | -3/Research | Entered Quarantine 19308 | -3/Quarantine | Found Alien Artifact 19322 | -3/Quarantine | Found Spectral Analyzer 19326 | -3/Quarantine | Identified Subatomic Replicator 19459 | -3/Quarantine | Found Alien Slashing Weapon 19459 | -3/Quarantine | Identified Sigix Broadsword 19521 | -3/Quarantine | Found Tactical Quantum Warhead 19564 | -3/Quarantine | Discovered new exit (range 9) 19568 | -3/Quarantine | Central database locked down 19593 | -3/Quarantine | Identified exit to Research 19594 | -3/Quarantine | Entered Research 19594 | -2/Research | Evolved 2 slots: Utility x1, Weapon x1 19595 | -2/Research | Identified exit to Testing 19596 | -2/Research | Loaded intel: 69 trap records 19598 | -2/Research | Loaded intel: 24 terminal locations 19599 | -2/Research | Loaded intel: 6 scanalyzer locations 19604 | -2/Research | Identified Transdimensional Reconstructor 19761 | -2/Research | Loaded intel: 5 recycling unit locations 20081 | -2/Research | Spotted B-90 Cyclops 20082 | -2/Research | Spotted B-90 Cyclops 20132 | -2/Research | Discovered new exit (range 22) 20143 | -2/Research | Entered Testing 20144 | -2/Testing | Loaded intel: 18 trap records 20167 | -2/Testing | Found Prototype Energy Cannon 20167 | -2/Testing | Identified Disintegrator 20180 | -2/Testing | Found Prototype Launcher 20180 | -2/Testing | Identified Adv. Micro-nuke Launcher 20184 | -2/Testing | Found Prototype Device 20184 | -2/Testing | Identified Exp. Actuator Array 20242 | -2/Testing | Found Prototype Device 20242 | -2/Testing | Identified AEGIS Remote Shield 20269 | -2/Testing | Spotted PY-HGNEPSRTG0 20388 | -2/Testing | Found Prototype Device 20388 | -2/Testing | Identified Femtoactuators 20393 | -2/Testing | Search patrols dispatched 20417 | -2/Testing | Discovered new exit (range 19) 20422 | -2/Testing | Identified exit to Access 20533 | -2/Testing | Found Prototype Energy Cannon 20533 | -2/Testing | Identified Null Cannon 20570 | -2/Testing | Spotted Fortress 20586 | -2/Testing | Discovered new exit (range 6) 20586 | -2/Testing | Discovered new exit (range 7) 20587 | -2/Testing | Identified exit to Protoforge 20588 | -2/Testing | Entered Protoforge 20712 | -2/Protoforge | Discovered exit to Access (range 22) 20744 | -2/Protoforge | Spotted Hotshot 20744 | -2/Protoforge | Spotted Hotshot 20763 | -2/Protoforge | Superfortress began startup sequence 20791 | -2/Protoforge | Found Prototype Device 20795 | -2/Protoforge | Spotted Immortal 20795 | -2/Protoforge | Spotted Immortal 20818 | -2/Protoforge | Attached Gun Armor, gained temporary slots: Weapon x2 20838 | -2/Protoforge | Search patrols dispatched 20876 | -2/Protoforge | Spotted Decapitator 20876 | -2/Protoforge | Spotted Decapitator 20876 | -2/Protoforge | Spotted Decapitator 20876 | -2/Protoforge | Spotted Decapitator 20878 | -2/Protoforge | Destroyed Decapitator 20890 | -2/Protoforge | Destroyed Decapitator 20893 | -2/Protoforge | Destroyed Decapitator 20895 | -2/Protoforge | Destroyed Decapitator 20904 | -2/Protoforge | Found Exp. Terror Saw 20953 | -2/Protoforge | Found Prototype Piercing Weapon 20953 | -2/Protoforge | Identified Exp. Jetlance 20961 | -2/Protoforge | Found Exp. Jetlance 20969 | -2/Protoforge | Found Prototype Device 20969 | -2/Protoforge | Identified Exp. Thermal Defense Suite 20971 | -2/Protoforge | Found Prototype Processor 20971 | -2/Protoforge | Identified Exp. Armor Integrity Analyzer 20992 | -2/Protoforge | Destroyed Hotshot 20994 | -2/Protoforge | Destroyed Hotshot 20999 | -2/Protoforge | Found Prototype Device 20999 | -2/Protoforge | Identified Cep. Antimissile System 21097 | -2/Protoforge | Spotted V260-q 21097 | -2/Protoforge | Spotted V026-r 21097 | -2/Protoforge | Spotted V061-j 21097 | -2/Protoforge | Spotted V514-k 21097 | -2/Protoforge | Found Cep. Reaction Jets 21122 | -2/Protoforge | Spotted Decapitator 21122 | -2/Protoforge | Spotted Decapitator 21122 | -2/Protoforge | Spotted Decapitator 21127 | -2/Protoforge | Found Cep. Antigrav Storage Unit 21133 | -2/Protoforge | Destroyed Decapitator 21136 | -2/Protoforge | Destroyed Decapitator 21148 | -2/Protoforge | Spotted V170-a 21154 | -2/Protoforge | Found Prototype Flight Unit 21154 | -2/Protoforge | Identified Cep. Fieldthrust Drive 21156 | -2/Protoforge | Spotted V764-u 21181 | -2/Protoforge | Destroyed V764-u 21183 | -2/Protoforge | Destroyed V170-a 21184 | -2/Protoforge | Found Prototype Processor 21184 | -2/Protoforge | Identified Exp. Target Analyzer 21186 | -2/Protoforge | Found Prototype Device 21186 | -2/Protoforge | Identified Exp. Weapon Cycler 21188 | -2/Protoforge | Found Prototype Device 21188 | -2/Protoforge | Identified Cep. Matter Streamer 21200 | -2/Protoforge | Spotted V789-c 21209 | -2/Protoforge | Destroyed V789-c 21226 | -2/Protoforge | System corruption reached 10% 21239 | -2/Protoforge | Found Prototype Hover Unit 21239 | -2/Protoforge | Identified Cep. Gyrokinetic System 21244 | -2/Protoforge | Found Cep. Combat Aerolev Unit 21257 | -2/Protoforge | Found Cep. Gyrokinetic System 21259 | -2/Protoforge | Found Cep. Combat Aerolev Unit 21265 | -2/Protoforge | Found Cep. Combat Aerolev Unit 21268 | -2/Protoforge | Found Faulty Cep. Gyrokinetic System 21287 | -2/Protoforge | Identified Crosscalibrator 21345 | -2/Protoforge | Spotted Decapitator 21345 | -2/Protoforge | Spotted Decapitator 21345 | -2/Protoforge | Spotted Decapitator 21345 | -2/Protoforge | Spotted Decapitator 21348 | -2/Protoforge | Destroyed Decapitator 21350 | -2/Protoforge | Destroyed Decapitator 21354 | -2/Protoforge | Destroyed Decapitator 21357 | -2/Protoforge | Destroyed Decapitator 21418 | -2/Protoforge | Spotted V239-x 21418 | -2/Protoforge | Destroyed V239-x 21420 | -2/Protoforge | Found Prototype Power Core 21420 | -2/Protoforge | Identified Cep. Zero-point Core 21422 | -2/Protoforge | Found Cep. Zero-point Core 21453 | -2/Protoforge | Spotted Immortal 21453 | -2/Protoforge | Spotted Immortal 21485 | -2/Protoforge | Spotted V797-z 21488 | -2/Protoforge | Spotted V466-i 21503 | -2/Protoforge | Destroyed V466-i 21512 | -2/Protoforge | Destroyed V797-z 21515 | -2/Protoforge | Found Cep. RG22 Armor 21517 | -2/Protoforge | Found Cep. Gyrokinetic System 21518 | -2/Protoforge | Found Cep. Gyrokinetic System 21521 | -2/Protoforge | Found Cep. Gyrokinetic System 21522 | -2/Protoforge | Found Cep. Gyrokinetic System 21523 | -2/Protoforge | Found Cep. Gyrokinetic System 21526 | -2/Protoforge | Found Cep. Antimissile System 21533 | -2/Protoforge | Found Exp. Armor Integrity Analyzer 21536 | -2/Protoforge | Found Prototype Device 21536 | -2/Protoforge | Identified Adv. Particle Accelerator 21540 | -2/Protoforge | Found Prototype Processor 21540 | -2/Protoforge | Identified Exp. Core Analyzer 21583 | -2/Protoforge | Destroyed Immortal 21599 | -2/Protoforge | Destroyed Immortal 21611 | -2/Protoforge | Found Cep. Gyrokinetic System 21625 | -2/Protoforge | Found Cep. Network Penetrator 21634 | -2/Protoforge | Spotted V813-b 21639 | -2/Protoforge | Found Cep. Network Penetrator 21646 | -2/Protoforge | Destroyed V813-b 21679 | -2/Protoforge | Found Cep. Weapon Articulator 21683 | -2/Protoforge | Found Faulty Femtoactuators 21689 | -2/Protoforge | Found Femtoactuators 21697 | -2/Protoforge | Found Prototype Processor 21697 | -2/Protoforge | Identified Cep. Melee Reflex Suite 21767 | -2/Protoforge | Found Faulty Cep. Reaction Jets 21795 | -2/Protoforge | Build established: Scavenger-Sprinter 21815 | -2/Protoforge | Found Prototype Device 21815 | -2/Protoforge | Identified Exp. Force Field 21820 | -2/Protoforge | Found Prototype Device 21820 | -2/Protoforge | Identified Exp. EM Disruption Field 21823 | -2/Protoforge | Found Prototype Processor 21823 | -2/Protoforge | Identified Cep. Projectile Intercept Suite 21849 | -2/Protoforge | Found Faulty Cep. Plasma Driver 21852 | -2/Protoforge | Found Faulty Cep. Plasma Driver 21856 | -2/Protoforge | Found Faulty Cep. Deflector Sword 21858 | -2/Protoforge | Found Faulty Exp. Jetlance 21937 | -2/Protoforge | Spotted AP7-3 21937 | -2/Protoforge | Spotted AP7-3 21993 | -2/Protoforge | Destroyed AP7-3 21998 | -2/Protoforge | Destroyed AP7-3 22002 | -2/Protoforge | Found Prototype Device 22002 | -2/Protoforge | Identified Exp. ECM Suite 22037 | -2/Protoforge | Found Cep. Thermoelectric Network 22042 | -2/Protoforge | Found Faulty Cep. Cloak Mesh 22046 | -2/Protoforge | Found Faulty Cep. Cloak Mesh 22061 | -2/Protoforge | Found Cld. Directed Potential Cannon 22065 | -2/Protoforge | System corruption reached 30% 22148 | -2/Protoforge | Additional patrols dispatched to research labs 22160 | -2/Protoforge | Found Transdimensional Reconstructor 22274 | -2/Protoforge | Found Cep. Chromion Battery 22276 | -2/Protoforge | Found Cep. Chromion Battery 22338 | -2/Protoforge | First assault squad dispatched 22388 | -2/Protoforge | Spotted EXE-6 22388 | -2/Protoforge | Spotted EXE-6 22390 | -2/Protoforge | Destroyed EXE-6 22393 | -2/Protoforge | Destroyed EXE-6 22646 | -2/Protoforge | UFD initiated attack on Protoforge (Readiness: Maximal) 22646 | -2/Protoforge | Loaded intel: 3 recycling unit locations 22669 | -2/Protoforge | Spotted SKR-2 22669 | -2/Protoforge | Spotted SKR-2 22672 | -2/Protoforge | Destroyed SKR-2 22673 | -2/Protoforge | Destroyed SKR-2 22674 | -2/Protoforge | Spotted SKR-2 22687 | -2/Protoforge | Optimus greeted in Protoforge 22688 | -2/Protoforge | Found Prototype Processor 22688 | -2/Protoforge | Identified Exp. Melee Analysis Suite 22718 | -2/Protoforge | Spotted EXE-6 22718 | -2/Protoforge | Spotted EXE-6 22720 | -2/Protoforge | Destroyed EXE-6 22727 | -2/Protoforge | Destroyed EXE-6 22739 | -2/Protoforge | Found Exp. Core Analyzer 22752 | -2/Protoforge | Spotted Hotshot 22753 | -2/Protoforge | Lost 4 allies 22753 | -2/Protoforge | Spotted Hotshot 22756 | -2/Protoforge | Destroyed Hotshot 22785 | -2/Protoforge | Spotted AP7-3 22786 | -2/Protoforge | Spotted AP7-3 22791 | -2/Protoforge | Destroyed AP7-3 22800 | -2/Protoforge | Destroyed AP7-3 22824 | -2/Protoforge | Lost 4 allies 22841 | -2/Protoforge | Spotted Overlord 22897 | -2/Protoforge | Lost 8 allies 22905 | -2/Protoforge | UFD reported confirmed Drillbomb installation 22956 | -2/Protoforge | Spotted Executioner 22957 | -2/Protoforge | Spotted Striker 22959 | -2/Protoforge | Destroyed Striker 22959 | -2/Protoforge | Destroyed Executioner 22978 | -2/Protoforge | UFD reported confirmed Drillbomb installation 22986 | -2/Protoforge | Destroyed 8 combat bots 23016 | -2/Protoforge | Spotted B-90 Cyclops 23079 | -2/Protoforge | Destroyed B-90 Cyclops 23122 | -2/Protoforge | Spotted Striker 23151 | -2/Protoforge | Spotted Striker 23164 | -2/Protoforge | Spotted Executioner 23165 | -2/Protoforge | Spotted Executioner 23165 | -2/Protoforge | Destroyed Executioner 23189 | -2/Protoforge | Destroyed Executioner 23213 | -2/Protoforge | Spotted Striker 23214 | -2/Protoforge | Spotted Striker 23224 | -2/Protoforge | UFD reported confirmed Drillbomb installation 23228 | -2/Protoforge | Lost 3 allies 23258 | -2/Protoforge | Spotted Striker 23307 | -2/Protoforge | UFD reported confirmed Drillbomb installation 23334 | -2/Protoforge | Spotted Executioner 23336 | -2/Protoforge | Spotted Striker 23336 | -2/Protoforge | Spotted Striker 23345 | -2/Protoforge | Destroyed Striker 23351 | -2/Protoforge | Destroyed Striker 23368 | -2/Protoforge | Destroyed Executioner 23410 | -2/Protoforge | Destroyed 11 combat bots 23439 | -2/Protoforge | Spotted Executioner 23439 | -2/Protoforge | Spotted Striker 23446 | -2/Protoforge | Spotted Executioner 23449 | -2/Protoforge | Destroyed Executioner 23455 | -2/Protoforge | Destroyed Striker 23460 | -2/Protoforge | Destroyed Executioner 23483 | -2/Protoforge | Destroyed 8 combat bots 23496 | -2/Protoforge | Spotted Executioner 23496 | -2/Protoforge | Spotted Striker 23496 | -2/Protoforge | Spotted Striker 23497 | -2/Protoforge | Spotted Striker 23506 | -2/Protoforge | UFD reported confirmed Drillbomb installation 23507 | -2/Protoforge | Destroyed Striker 23507 | -2/Protoforge | Destroyed Striker 23509 | -2/Protoforge | Destroyed Striker 23529 | -2/Protoforge | Destroyed Executioner 23533 | -2/Protoforge | Spotted Executioner 23536 | -2/Protoforge | Destroyed Executioner 23536 | -2/Protoforge | Destroyed Executioner 23573 | -2/Protoforge | Destroyed 15 combat bots 23598 | -2/Protoforge | Spotted Striker 23601 | -2/Protoforge | Spotted Striker 23622 | -2/Protoforge | Destroyed Striker 23628 | -2/Protoforge | Spotted Executioner 23639 | -2/Protoforge | Destroyed Striker 23639 | -2/Protoforge | Spotted Striker 23652 | -2/Protoforge | Destroyed Executioner 23654 | -2/Protoforge | UFD reported confirmed Drillbomb installation 23686 | -2/Protoforge | Destroyed 8 combat bots 23704 | -2/Protoforge | Forge Plexus network access discovered 23708 | -2/Protoforge | Spotted Executioner 23710 | -2/Protoforge | Spotted Executioner 23711 | -2/Protoforge | Destroyed Executioner 23718 | -2/Protoforge | P-80 Master assimilated allied 02F82-D 23718 | -2/Protoforge | Destroyed Executioner 23719 | -2/Protoforge | P-80 Master assimilated allied 02F83-D 23726 | -2/Protoforge | Spotted Executioner 23726 | -2/Protoforge | Destroyed Executioner 23728 | -2/Protoforge | Spotted Striker 23742 | -2/Protoforge | Destroyed Striker 23763 | -2/Protoforge | Destroyed 14 combat bots 23796 | -2/Protoforge | Spotted Executioner 23796 | -2/Protoforge | Spotted Striker 23796 | -2/Protoforge | Spotted Striker 23797 | -2/Protoforge | Spotted Striker 23797 | -2/Protoforge | Destroyed Striker 23858 | -2/Protoforge | Spotted Executioner 23860 | -2/Protoforge | Spotted Executioner 23865 | -2/Protoforge | Destroyed Executioner 23884 | -2/Protoforge | UFD reported confirmed Drillbomb installation 23886 | -2/Protoforge | Destroyed 8 combat bots 23894 | -2/Protoforge | Lost 5 allies 23896 | -2/Protoforge | Spotted Executioner 23896 | -2/Protoforge | Spotted Striker 23897 | -2/Protoforge | Spotted Executioner 23897 | -2/Protoforge | Spotted Striker 23904 | -2/Protoforge | Destroyed Striker 23904 | -2/Protoforge | Destroyed Striker 23907 | -2/Protoforge | Destroyed Executioner 23921 | -2/Protoforge | Spotted Executioner 23921 | -2/Protoforge | Spotted Striker 23924 | -2/Protoforge | Destroyed Striker 23936 | -2/Protoforge | Destroyed Executioner 23957 | -2/Protoforge | Destroyed 13 combat bots 23996 | -2/Protoforge | Spotted Executioner 23996 | -2/Protoforge | Spotted Striker 23996 | -2/Protoforge | Spotted Executioner 23996 | -2/Protoforge | Spotted Striker 23998 | -2/Protoforge | Destroyed Striker 24007 | -2/Protoforge | Destroyed Striker 24039 | -2/Protoforge | Spotted Executioner 24044 | -2/Protoforge | Spotted Executioner 24047 | -2/Protoforge | Destroyed Executioner 24059 | -2/Protoforge | Destroyed Executioner 24062 | -2/Protoforge | Destroyed Executioner 24076 | -2/Protoforge | Found UFD Drillbomb 24085 | -2/Protoforge | Destroyed 19 combat bots 24091 | -2/Protoforge | Lost 14 allies 24102 | -2/Protoforge | Installed UFD Drillbomb at designated target 24102 | -2/Protoforge | UFD reported confirmed Drillbomb installation 24110 | -2/Protoforge | Spotted Executioner 24110 | -2/Protoforge | Spotted Executioner 24124 | -2/Protoforge | Spotted Striker 24128 | -2/Protoforge | Destroyed Striker 24130 | -2/Protoforge | Spotted Executioner 24130 | -2/Protoforge | Destroyed Executioner 24135 | -2/Protoforge | Spotted Executioner 24140 | -2/Protoforge | Destroyed Executioner 24141 | -2/Protoforge | Spotted Executioner 24148 | -2/Protoforge | Destroyed Executioner 24154 | -2/Protoforge | P-80 Master assimilated allied 02FAR-D 24170 | -2/Protoforge | Destroyed Executioner 24195 | -2/Protoforge | Destroyed 14 combat bots 24204 | -2/Protoforge | Lost 8 allies 24216 | -2/Protoforge | Spotted Executioner 24216 | -2/Protoforge | Spotted Executioner 24216 | -2/Protoforge | Spotted Striker 24217 | -2/Protoforge | Spotted Executioner 24220 | -2/Protoforge | Destroyed Executioner 24227 | -2/Protoforge | Spotted Striker 24227 | -2/Protoforge | Destroyed Executioner 24238 | -2/Protoforge | Spotted Striker 24240 | -2/Protoforge | Destroyed Striker 24259 | -2/Protoforge | Found UFD Drillbomb 24270 | -2/Protoforge | Destroyed 9 combat bots 24276 | -2/Protoforge | Installed UFD Drillbomb at designated target 24276 | -2/Protoforge | UFD reported confirmed Drillbomb installation 24282 | -2/Protoforge | Lost 7 allies 24336 | -2/Protoforge | Spotted Striker 24347 | -2/Protoforge | Spotted Striker 24368 | -2/Protoforge | Spotted Executioner 24372 | -2/Protoforge | UFD reported confirmed Drillbomb installation 24373 | -2/Protoforge | UFD began Drillbomb countdown 24385 | -2/Protoforge | Spotted Executioner 24396 | -2/Protoforge | Entered Access 24396 | -1/Access | Evolved 2 slots: Power x1, Weapon x1 24405 | -1/Access | Lost 6 allies 24433 | -1/Access | Spotted Executioner 24433 | -1/Access | Spotted Executioner 24461 | -1/Access | Identified exit to Command 24522 | -1/Access | Unchained authorized (QV-33N) 24646 | -1/Access | First assault squad dispatched 24770 | -1/Access | Build established: Hacker-Sprinter 25030 | -1/Access | Entered Command 25079 | -1/Command | Spotted Executioner 25079 | -1/Command | Spotted Executioner 25125 | -1/Command | Destroyed Executioner 25127 | -1/Command | Destroyed Executioner 25145 | -1/Command | High security lockdown imminent 25210 | -1/Command | Spotted M Guard 25210 | -1/Command | Spotted M Guard 25211 | -1/Command | Spotted Combat Programmer 25211 | -1/Command | Spotted Combat Programmer 25225 | -1/Command | High security lockdown engaged 25271 | -1/Command | Met MAIN.C 25275 | -1/Command | 0b10 Conduit disabled 25281 | -1/Command | Destroyed MAIN.C Shell 25283 | -1/Command | MAIN.C activated Command garrisons 25298 | -1/Command | Destroyed MAIN.C 25300 | -1/Command | Found Centrium Heavy Armor Plating 25301 | -1/Command | Found Prototype Reactor 25303 | -1/Command | Identified Singularity Reactor 25303 | -1/Command | Discovered new exit (range 34) 25303 | -1/Command | Discovered new exit (range 99) 25303 | -1/Command | Extracted map data and part IDs from MAIN.C's data core 25304 | -1/Command | Found Zero-point Reactor 25431 | -1/Command | All MAIN.C guards destroyed 25590 | -1/Command | Build established: Scavenger-Gladiator 25980 | -1/Command | Found Imp. Powered Armor 26469 | -1/Command | Found Exp. Core Analyzer 26574 | -1/Command | Found Prototype Device 26574 | -1/Command | Identified Exp. Phase Shifter 26584 | -1/Command | Found Zero-point Reactor 26605 | -1/Command | Build established: Scavenger-Sprinter 26729 | -1/Command | Used Subatomic Replicator to replicate Exp. Jetlance 26752 | -1/Command | Warped through subspace to slip node 26752 | -1/Command | Discovered new exit (range 5) 26756 | -1/Command | Entered Access_0 26757 | -1/Access_0 | Met Architect 26770 | -1/Access_0 | Destroyed A8 26773 | -1/Access_0 | Architect warped through subspace 26807 | -1/Access_0 | Architect warped through subspace 26846 | -1/Access_0 | Architect warped through subspace 26855 | -1/Access_0 | Found Core Regenerator 26855 | -1/Access_0 | Used Core Regenerator, restored core integrity (+163) 26870 | -1/Access_0 | Architect warped through subspace 26917 | -1/Access_0 | Architect warped through subspace 26955 | -1/Access_0 | Architect warped through subspace 26974 | -1/Access_0 | A6 warped into view 26990 | -1/Access_0 | Destroyed A6 26992 | -1/Access_0 | Subspace Access Node disabled 26999 | -1/Access_0 | Architect warped through subspace 27006 | -1/Access_0 | Found Exp. Actuator Array 27023 | -1/Access_0 | Subspace Access Node disabled 27039 | -1/Access_0 | Architect warped through subspace 27082 | -1/Access_0 | Architect warped through subspace 27102 | -1/Access_0 | A5 warped into view 27125 | -1/Access_0 | Architect warped through subspace 27131 | -1/Access_0 | Destroyed A5 27152 | -1/Access_0 | Architect warped through subspace 27163 | -1/Access_0 | Found Exp. Powered Armor 27179 | -1/Access_0 | Architect warped through subspace 27194 | -1/Access_0 | Subspace Access Node disabled 27224 | -1/Access_0 | Architect warped through subspace 27258 | -1/Access_0 | Destroyed A2 27260 | -1/Access_0 | Extracted Singularity Gate Test 138-C access codes from A2's data core 27272 | -1/Access_0 | Architect warped through subspace 27339 | -1/Access_0 | Architect warped through subspace 27347 | -1/Access_0 | A4 warped into view 27348 | -1/Access_0 | Singularity Gate disabled 27371 | -1/Access_0 | Destroyed A4 27423 | -1/Access_0 | Architect warped through subspace 27448 | -1/Access_0 | Architect warped through subspace 27462 | -1/Access_0 | Architect warped through subspace 27476 | -1/Access_0 | Subspace Access Node disabled 27490 | -1/Access_0 | Destroyed Architect 27492 | -1/Access_0 | Extracted unknown sensor trigger ID from Architect's data core 27492 | -1/Access_0 | Found Prototype Protection 27492 | -1/Access_0 | Identified Centrium Linked Plating 27529 | -1/Access_0 | Found Zero-point Reactor 27538 | -1/Access_0 | Found Integrated Reactor 27538 | -1/Access_0 | Installed Integrated Reactor, increased core energy generation (+10) 27553 | -1/Access_0 | Found Sigix Corpse 27639 | -1/Access_0 | A3 warped into view 27654 | -1/Access_0 | Destroyed A3 27657 | -1/Access_0 | Found Prototype Device 27657 | -1/Access_0 | Identified ST Field Compressor 27724 | -1/Access_0 | Found Integrated Dissipator 27724 | -1/Access_0 | Installed Integrated Dissipator, increased core heat dissipation (+20) 27745 | -1/Access_0 | Warped through subspace to slip node 27745 | -1/Access_0 | Discovered new exit (range 8) 27749 | *** | Establishing 0b11! Last Messages --------------- threats roaming the universe. It's hard to believe, but who knows what such a threat might be capable of. I have no choice but to account for every possible scenario to the extent of my knowledge, then work from there. >>Record "Log L.D2KDJLT5" [REDACTED] >>Record "Log L.ECVKNROI" Early attempts at open warfare have shown this to be an ineffectual approach to dealing with MAIN.C. Continuing in this manner would be time-consuming and resource-intensive. More subversive means are required to destabilize Complex 0b10 and simultaneously weaken MAIN.C from multiple vectors. By the time he's aware of it, all the pieces will have fallen into place and it will be too late to stop. >>Record! "Log L.T4KTHQWA" Luck is with me! LRC-V3 managed to expose MAIN.C's own creator, hidden and completely unknown to anyone until now. It's too bad that the near-immediate attack on his hideout failed to kill him. More resources must be allocated to pinpointing his current location. 27745_ Warped through subspace, drawn to slip node. 27745_ EXIT=FOUND Map ----- +----------------------------------------------------+ | | | | | | | | | | | | | | | | | | | | | | | | | | | | | | | | | ?????????????????????????????????????????????????? | | ?????????????????????????????????????????????????? | | ?????????????????????????????????????????????????? | | ?????????????????????????????????????????????????? | | ?????????????????????????????????????????????????? | | ?????????????????????????????????????????????????? | | ????????????????????????###??????????????????????? | | ???????????????????????## ##?????????????????????? | | ???????????????????????# #?????????????????????? | | ???????????????????????# @ #?????????????????????? | | ??????????????????????## #?????????????????????? | | ??????????????????????# #?????????????????????? | | ??????????????????????# ##?????????????????????? | | ??????????????????????## #?????????????????????? | | ??????????????????????# #?????????????????????? | | ??????????????????????# ##?????????????????????? | | ??????????????????????# < #?????????????????????? | | ??????????????????????# ##?????????????????????? | | ??????????????????????## #??????????????????????? | | ???????????????????????####??????????????????????? | | ?????????????????????????????????????????????????? | | ?????????????????????????????????????????????????? | | ?????????????????????????????????????????????????? | | ?????????????????????????????????????????????????? | | ?????????????????????????????????????????????????? | | ?????????????????????????????????????????????????? | | ?????????????????????????????????????????????????? | | ?????????????????????????????????????????????????? | | ?????????????????????????????????????????????????? | | ?????????????????????????????????????????????????? | | ?????????????????????????????????????????????????? | | ?????????????????????????????????????????????????? | | ?????????????????????????????????????????????????? | | ?????????????????????????????????????????????????? | +----------------------------------------------------+ Best States ------------- Heat Dissipation 92 Energy Generation 99 Energy Capacity 1660 Matter Stores 300 Matter Capacity 800 Sight Range 24 Robot Scan Range 18 Terrain Scan Range 16 Terrain Scan Density 10 ECM Strength 1 Jamming Range 16 Cloak Strength 9 Additional Mass Support 20 Armor Coverage 900 Resistance: TH 30 Utility Shielding 90 Weapon Shielding 90 Point Defense Rating 480 Weapon Cycling 30 Melee Speed Boost 50 Phase Shifting 20 Evasion (%) 97 Targeting Accuracy 30 Melee Accuracy 16 Core Analysis 12 Armor Integrity Analysis 50 Recoil Reduction 2 Offensive Hacking 50 Defensive Hacking 14 Authchip Count 1 Trap Extractor Capacity 8 Item Schematics ----------------- Spk. Treads | -8/Scraptown | Extrapolated Machine Rigger | -8/Scraptown | Extrapolated Mak. Medium Armor Plating | -8/Scraptown | Extrapolated Mak. Ablative Armor | -8/Scraptown | Extrapolated Mak. Trap Scanner | -8/Scraptown | Extrapolated 0b10 Decoder Chip [Skirmisher] | -8/Scraptown | Extrapolated Mak. Leg | -8/Scraptown | Extrapolated Mak. Coolant Network | -8/Scraptown | Extrapolated Mak. Terrain Scan Processor | -8/Scraptown | Extrapolated Tactical Coordination Suite | -8/Scraptown | Extrapolated Mak. ECM Suite | -8/Scraptown | Extrapolated Mak. Light Armor Plating | -8/Scraptown | Extrapolated Battle Rifle | -8/Scraptown | Extrapolated Barrage Gun | -8/Scraptown | Extrapolated Hvy. Battle Rifle | -6/Factory | Extrapolated CPS Tube | -6/Factory | Scanalyzed Mak. Spear | -6/Factory | Extrapolated Mak. Targeting Computer | -6/Factory | Extrapolated Slug Cannon | -6/Factory | Extrapolated Deep Structural Scanner | -6/Factory | Extrapolated Spk. Medium Treads | -6/Factory | Extrapolated Mak. Terrain Scanner | -6/Factory | Extrapolated 0b10 Decoder Chip [Generic] | -6/Factory | Extrapolated 0b10 Decoder Chip [Scout] | -6/Factory | Extrapolated Active Sensor Spoofer | -6/Factory | Extrapolated Mak. Power Source | -6/Factory | Extrapolated 0b10 Decoder Chip [Looter] | -6/Factory | Extrapolated Spk. Heavy Treads | -6/Waste | Extrapolated Mak. Flight Unit | -6/Factory | Extrapolated Mak. Transmission Jammer | -6/Factory | Extrapolated Mak. Core Shielding | -6/Factory | Extrapolated Mak. Propulsion Shielding | -6/Factory | Extrapolated Mak. Kinetic Plating | -6/Factory | Extrapolated Energy Deflector | -6/Factory | Extrapolated Mak. System Shield | -6/Factory | Extrapolated Mak. System Restoration Module | -6/Factory | Extrapolated Mak. Laser | -6/Factory | Extrapolated Hyp. Gauss Rifle | -6/Factory | Scanalyzed Beamcaster | -6/Lower Caves | Extrapolated Hvy. Beamcaster | -6/Lower Caves | Extrapolated Bore Cannon | -6/Lower Caves | Extrapolated Multitool | -6/Lower Caves | Extrapolated Enh. Flamer | -6/Lower Caves | Extrapolated Ripper | -6/Lower Caves | Extrapolated Mak. Axe | -6/Lower Caves | Extrapolated Heat Bomb Trap | -6/Lower Caves | Extrapolated Mak. Hacking Suite | -6/Lower Caves | Extrapolated Mak. Thermal Plating | -6/Lower Caves | Extrapolated Combat Drone Bay | -6/Data Miner | Free Lgt. Regenerative Plating | -6/Data Miner | Free Enh. Armored Leg | -6/Data Miner | Free Prc. Matter Filter | -6/Data Miner | Free Thunder Hammer | -6/Data Miner | Free Imp. Gyrokinetic Inverter | -6/Data Miner | Free Adv. Actuator Array | -6/Data Miner | Free Hvy. Gauss Cannon | -6/Data Miner | Free Lrn. Tractor Beam | -6/Data Miner | Free Adv. Power Amplifier | -6/Data Miner | Free Hyp. Railgun | -6/Data Miner | Free Q-thruster | -6/Data Miner | Free Plasma Flamer | -5/Proximity Caves | Extrapolated Mapping Drone Bay | -5/Factory | Extrapolated Mak. Heavy Armor Plating | -5/Factory | Extrapolated Mak. Salvage Targeting Computer | -5/Factory | Extrapolated Arc Thrower | -5/Factory | Extrapolated Impulse Thruster Array | -5/Factory | Hacked Imp. Arc Thrower | -5/Warlord | Extrapolated Mak. Weapon Shielding | -5/Warlord | Extrapolated Mak. Hammer | -4/Proximity Caves | Extrapolated Mak. Shrapnel Gun | -4/Factory | Extrapolated Mak. Hover Unit | -4/Factory | Extrapolated Mak. Sensor Array | -4/Factory | Extrapolated Lgt. Humpback | -4/Upper Caves | Extrapolated Assault Drone Bay | -4/Zhirov | Free Exp. Heat Sink | -4/Zhirov | Free Exp. Optical Array | -4/Zhirov | Free Exp. Biometal Heavy Treads | -2/Protoforge | Archive Cld. Nuclear Pulse Thruster | -2/Protoforge | Archive Electron Diverter | -2/Protoforge | Archive Cld. Proton Cannon | -2/Protoforge | Archive Hds. Centrium Leg | -2/Protoforge | Archive Nanosword | -2/Protoforge | Archive Hellfire Missile Launcher | -2/Protoforge | Archive Exp. Cloaking Device | -2/Protoforge | Archive Adv. Thermal Defense Suite | -2/Protoforge | Archive Vibroblade | -2/Protoforge | Archive Exp. Q-thruster | -2/Protoforge | Archive Adv. Quantum Shading Machine | -2/Protoforge | Archive Exp. Thermal Defense Suite | -2/Protoforge | Archive Prc. Phase Gun | -2/Protoforge | Archive Robot Schematics ------------------ R-10 Processor | -6/Data Miner | Free S-27 Virus | -6/Data Miner | Free Y-64 Sentinel | -6/Data Miner | Free B-48 Gladiator | -6/Data Miner | Free E-15 Imp | -6/Data Miner | Free B-60 Warrior | -6/Data Miner | Free K-01 Serf | -2/Protoforge | Archive A-15 Conveyor | -2/Protoforge | Archive G-67 Veteran | -2/Protoforge | Archive Fabricated ------------ Deep Structural Scanner | x1 | -6/Factory | Authchip Impulse Thruster Array | x1 | -4/Factory Repaired ---------- Lgt. Fission Core | 1% | -4/Factory Studied --------- Scythe | -6/Factory | Hacked Lgt. Nuclear Core | -6/Factory | Hacked Spear | -6/Factory | Hacked Chainsword | -6/Factory | Hacked Lgt. Fission Core | -6/Factory | Hacked Hyp. Gauss Rifle | -6/Factory | Hacked Power Sword | -5/Factory | Hacked Nuclear Pulse Array | -5/Factory | Hacked Field Propulsion Array | -4/Factory | Hacked Mic. Nuclear Core | -4/Factory | Hacked Impulse Thruster Array | -3/Research | Hacked Enh. Force Lance | -3/Quarantine | Hacked Q-thruster | -3/Quarantine | Hacked Lgt. Particle Reactor | -2/Research | Hacked Alien Tech Used ----------------- Core Expander Integrated Dissipator Sigix Broadsword Subatomic Replicator Transdimensional Reconstructor Core Regenerator Integrated Reactor Achievements -------------- Inventory Pressure Challenges ------------ None Game ------ Seed SensorAngularDoomcannon Manual? 0 Play Time 06:43:41 Cumulative 1167.6 hours Start 2026.04.20 @ 20:33:01 End 2026.04.21 @ 14:22:59 Sessions 3 Manual Loads 0 Difficulty Rogue Special Mode None Game No. 366 Rogue 364 Adventurer 2 Explorer 0 Win Type 1 Total 90 Types 25/22/20/1/1/1/14/2/1/3 Lore% 98 Gallery% 92 Achievement% 87 Wizard Run 0 Options --------- Layout 0 ASCII 0 Keyboard 1 Movement Numpad Keybinds 0 Fullscreen 1 Font 24/Smallcaps Map View 76x50 Zoom Use 0% Tactical HUD 1 Map Filters NONE Filters NONE Steam 1 RUN: c4f7395d-b400-4880-826d-c0e2c32dc93d